{"text_format":"3","workbook":"xlsx","n_sheets":12,"sheets":["ЯНВ","ФЕВ","МАР","АПР","МАЙ","ИЮН","ИЮЛ","АВГ","СЕН","ОКТ","НОЯ","ДЕК"],"not_rendered":{"defined_names":40},"read":"whole","date_system":"1900"}

{"sheet":"ЯНВ","index":0,"n_rows":20,"n_cols":9,"rows_kept":20,"merged":[[16,2,17,2],[16,3,17,3],[17,4,19,8]]}
[null,"ЯНВ","ВС",{"$f":"UPPER(TEXT(D3,\"ДДД\"))","v":"ПН"},"ВТ","СР","ЧТ","ПТ","СБ"]
[null,{"$f":"YEAR(TODAY())","v":2018}]
[null,null,{"$f":"ДниИНедели+DATE(ГодКалендаря,1,1)-WEEKDAY(DATE(ГодКалендаря,1,1),(НачалоНедели=\"ПН\")+1)+1","v":"2017-12-31"},"2018-01-01","2018-01-02","2018-01-03","2018-01-04","2018-01-05","2018-01-06"]
[null,null,{"$f":"IF(DAY(КалендарныйДень)=1,CONCATENATE(\"Неделя \",WEEKNUM(КалендарныйДень),\"/День \",КалендарныйДень-DATE(YEAR(КалендарныйДень),1,0)),CONCATENATE(\"День \",КалендарныйДень-DATE(YEAR(КалендарныйДень),1,0)))","v":"День 365"},"Неделя 1/День 1","День 2","День 3","День 4","День 5","День 6"]
[]
[null,null,{"$f":"ДниИНедели+DATE(ГодКалендаря,1,1)-WEEKDAY(DATE(ГодКалендаря,1,1),(НачалоНедели=\"ПН\")+1)+8","v":"2018-01-07"},"2018-01-08","2018-01-09","2018-01-10","2018-01-11","2018-01-12","2018-01-13"]
[null,null,{"$f":"IF(WEEKDAY(КалендарныйДень)=ЗначениеНачалаНедели,CONCATENATE(\"Неделя \",WEEKNUM(КалендарныйДень),\"/День \",КалендарныйДень-DATE(YEAR(КалендарныйДень),1,0)),CONCATENATE(\"День \",КалендарныйДень-DATE(YEAR(КалендарныйДень),1,0)))","v":"Неделя 2/День 7"},{"$f":"IF(WEEKDAY(КалендарныйДень)=ЗначениеНачалаНедели,CONCATENATE(\"Неделя \",WEEKNUM(КалендарныйДень),\"/День \",КалендарныйДень-DATE(YEAR(КалендарныйДень),1,0)),CONCATENATE(\"День \",КалендарныйДень-DATE(YEAR(КалендарныйДень),1,0)))","v":"День 8"},{"$f":"IF(WEEKDAY(КалендарныйДень)=ЗначениеНачалаНедели,CONCATENATE(\"Неделя \",WEEKNUM(КалендарныйДень),\"/День \",КалендарныйДень-DATE(YEAR(КалендарныйДень),1,0)),CONCATENATE(\"День \",КалендарныйДень-DATE(YEAR(КалендарныйДень),1,0)))","v":"День 9"},{"$f":"IF(WEEKDAY(КалендарныйДень)=ЗначениеНачалаНедели,CONCATENATE(\"Неделя \",WEEKNUM(КалендарныйДень),\"/День \",КалендарныйДень-DATE(YEAR(КалендарныйДень),1,0)),CONCATENATE(\"День \",КалендарныйДень-DATE(YEAR(КалендарныйДень),1,0)))","v":"День 10"},{"$f":"IF(WEEKDAY(КалендарныйДень)=ЗначениеНачалаНедели,CONCATENATE(\"Неделя \",WEEKNUM(КалендарныйДень),\"/День \",КалендарныйДень-DATE(YEAR(КалендарныйДень),1,0)),CONCATENATE(\"День \",КалендарныйДень-DATE(YEAR(КалендарныйДень),1,0)))","v":"День 11"},{"$f":"IF(WEEKDAY(КалендарныйДень)=ЗначениеНачалаНедели,CONCATENATE(\"Неделя \",WEEKNUM(КалендарныйДень),\"/День \",КалендарныйДень-DATE(YEAR(КалендарныйДень),1,0)),CONCATENATE(\"День \",КалендарныйДень-DATE(YEAR(КалендарныйДень),1,0)))","v":"День 12"},{"$f":"IF(WEEKDAY(КалендарныйДень)=ЗначениеНачалаНедели,CONCATENATE(\"Неделя \",WEEKNUM(КалендарныйДень),\"/День \",КалендарныйДень-DATE(YEAR(КалендарныйДень),1,0)),CONCATENATE(\"День \",КалендарныйДень-DATE(YEAR(КалендарныйДень),1,0)))","v":"День 13"}]
[]
[null,null,{"$f":"ДниИНедели+DATE(ГодКалендаря,1,1)-WEEKDAY(DATE(ГодКалендаря,1,1),(НачалоНедели=\"ПН\")+1)+15","v":"2018-01-14"},"2018-01-15","2018-01-16","2018-01-17","2018-01-18","2018-01-19","2018-01-20"]
[null,null,{"$f":"IF(WEEKDAY(КалендарныйДень)=ЗначениеНачалаНедели,CONCATENATE(\"Неделя \",WEEKNUM(КалендарныйДень),\"/День \",КалендарныйДень-DATE(YEAR(КалендарныйДень),1,0)),CONCATENATE(\"День \",КалендарныйДень-DATE(YEAR(КалендарныйДень),1,0)))","v":"Неделя 3/День 14"},{"$f":"IF(WEEKDAY(КалендарныйДень)=ЗначениеНачалаНедели,CONCATENATE(\"Неделя \",WEEKNUM(КалендарныйДень),\"/День \",КалендарныйДень-DATE(YEAR(КалендарныйДень),1,0)),CONCATENATE(\"День \",КалендарныйДень-DATE(YEAR(КалендарныйДень),1,0)))","v":"День 15"},{"$f":"IF(WEEKDAY(КалендарныйДень)=ЗначениеНачалаНедели,CONCATENATE(\"Неделя \",WEEKNUM(КалендарныйДень),\"/День \",КалендарныйДень-DATE(YEAR(КалендарныйДень),1,0)),CONCATENATE(\"День \",КалендарныйДень-DATE(YEAR(КалендарныйДень),1,0)))","v":"День 16"},{"$f":"IF(WEEKDAY(КалендарныйДень)=ЗначениеНачалаНедели,CONCATENATE(\"Неделя \",WEEKNUM(КалендарныйДень),\"/День \",КалендарныйДень-DATE(YEAR(КалендарныйДень),1,0)),CONCATENATE(\"День \",КалендарныйДень-DATE(YEAR(КалендарныйДень),1,0)))","v":"День 17"},{"$f":"IF(WEEKDAY(КалендарныйДень)=ЗначениеНачалаНедели,CONCATENATE(\"Неделя \",WEEKNUM(КалендарныйДень),\"/День \",КалендарныйДень-DATE(YEAR(КалендарныйДень),1,0)),CONCATENATE(\"День \",КалендарныйДень-DATE(YEAR(КалендарныйДень),1,0)))","v":"День 18"},{"$f":"IF(WEEKDAY(КалендарныйДень)=ЗначениеНачалаНедели,CONCATENATE(\"Неделя \",WEEKNUM(КалендарныйДень),\"/День \",КалендарныйДень-DATE(YEAR(КалендарныйДень),1,0)),CONCATENATE(\"День \",КалендарныйДень-DATE(YEAR(КалендарныйДень),1,0)))","v":"День 19"},{"$f":"IF(WEEKDAY(КалендарныйДень)=ЗначениеНачалаНедели,CONCATENATE(\"Неделя \",WEEKNUM(КалендарныйДень),\"/День \",КалендарныйДень-DATE(YEAR(КалендарныйДень),1,0)),CONCATENATE(\"День \",КалендарныйДень-DATE(YEAR(КалендарныйДень),1,0)))","v":"День 20"}]
[]
[null,null,{"$f":"ДниИНедели+DATE(ГодКалендаря,1,1)-WEEKDAY(DATE(ГодКалендаря,1,1),(НачалоНедели=\"ПН\")+1)+22","v":"2018-01-21"},"2018-01-22","2018-01-23","2018-01-24","2018-01-25","2018-01-26","2018-01-27"]
[null,null,{"$f":"IF(WEEKDAY(КалендарныйДень)=ЗначениеНачалаНедели,CONCATENATE(\"Неделя \",WEEKNUM(КалендарныйДень),\"/День \",КалендарныйДень-DATE(YEAR(КалендарныйДень),1,0)),CONCATENATE(\"День \",КалендарныйДень-DATE(YEAR(КалендарныйДень),1,0)))","v":"Неделя 4/День 21"},{"$f":"IF(WEEKDAY(КалендарныйДень)=ЗначениеНачалаНедели,CONCATENATE(\"Неделя \",WEEKNUM(КалендарныйДень),\"/День \",КалендарныйДень-DATE(YEAR(КалендарныйДень),1,0)),CONCATENATE(\"День \",КалендарныйДень-DATE(YEAR(КалендарныйДень),1,0)))","v":"День 22"},{"$f":"IF(WEEKDAY(КалендарныйДень)=ЗначениеНачалаНедели,CONCATENATE(\"Неделя \",WEEKNUM(КалендарныйДень),\"/День \",КалендарныйДень-DATE(YEAR(КалендарныйДень),1,0)),CONCATENATE(\"День \",КалендарныйДень-DATE(YEAR(КалендарныйДень),1,0)))","v":"День 23"},{"$f":"IF(WEEKDAY(КалендарныйДень)=ЗначениеНачалаНедели,CONCATENATE(\"Неделя \",WEEKNUM(КалендарныйДень),\"/День \",КалендарныйДень-DATE(YEAR(КалендарныйДень),1,0)),CONCATENATE(\"День \",КалендарныйДень-DATE(YEAR(КалендарныйДень),1,0)))","v":"День 24"},{"$f":"IF(WEEKDAY(КалендарныйДень)=ЗначениеНачалаНедели,CONCATENATE(\"Неделя \",WEEKNUM(КалендарныйДень),\"/День \",КалендарныйДень-DATE(YEAR(КалендарныйДень),1,0)),CONCATENATE(\"День \",КалендарныйДень-DATE(YEAR(КалендарныйДень),1,0)))","v":"День 25"},{"$f":"IF(WEEKDAY(КалендарныйДень)=ЗначениеНачалаНедели,CONCATENATE(\"Неделя \",WEEKNUM(КалендарныйДень),\"/День \",КалендарныйДень-DATE(YEAR(КалендарныйДень),1,0)),CONCATENATE(\"День \",КалендарныйДень-DATE(YEAR(КалендарныйДень),1,0)))","v":"День 26"},{"$f":"IF(WEEKDAY(КалендарныйДень)=ЗначениеНачалаНедели,CONCATENATE(\"Неделя \",WEEKNUM(КалендарныйДень),\"/День \",КалендарныйДень-DATE(YEAR(КалендарныйДень),1,0)),CONCATENATE(\"День \",КалендарныйДень-DATE(YEAR(КалендарныйДень),1,0)))","v":"День 27"}]
[]
[null,null,{"$f":"ДниИНедели+DATE(ГодКалендаря,1,1)-WEEKDAY(DATE(ГодКалендаря,1,1),(НачалоНедели=\"ПН\")+1)+29","v":"2018-01-28"},"2018-01-29","2018-01-30","2018-01-31","2018-02-01","2018-02-02","2018-02-03"]
[null,null,{"$f":"IF(WEEKDAY(КалендарныйДень)=ЗначениеНачалаНедели,CONCATENATE(\"Неделя \",WEEKNUM(КалендарныйДень),\"/День \",КалендарныйДень-DATE(YEAR(КалендарныйДень),1,0)),CONCATENATE(\"День \",КалендарныйДень-DATE(YEAR(КалендарныйДень),1,0)))","v":"Неделя 5/День 28"},{"$f":"IF(WEEKDAY(КалендарныйДень)=ЗначениеНачалаНедели,CONCATENATE(\"Неделя \",WEEKNUM(КалендарныйДень),\"/День \",КалендарныйДень-DATE(YEAR(КалендарныйДень),1,0)),CONCATENATE(\"День \",КалендарныйДень-DATE(YEAR(КалендарныйДень),1,0)))","v":"День 29"},{"$f":"IF(WEEKDAY(КалендарныйДень)=ЗначениеНачалаНедели,CONCATENATE(\"Неделя \",WEEKNUM(КалендарныйДень),\"/День \",КалендарныйДень-DATE(YEAR(КалендарныйДень),1,0)),CONCATENATE(\"День \",КалендарныйДень-DATE(YEAR(КалендарныйДень),1,0)))","v":"День 30"},{"$f":"IF(WEEKDAY(КалендарныйДень)=ЗначениеНачалаНедели,CONCATENATE(\"Неделя \",WEEKNUM(КалендарныйДень),\"/День \",КалендарныйДень-DATE(YEAR(КалендарныйДень),1,0)),CONCATENATE(\"День \",КалендарныйДень-DATE(YEAR(КалендарныйДень),1,0)))","v":"День 31"},{"$f":"IF(WEEKDAY(КалендарныйДень)=ЗначениеНачалаНедели,CONCATENATE(\"Неделя \",WEEKNUM(КалендарныйДень),\"/День \",КалендарныйДень-DATE(YEAR(КалендарныйДень),1,0)),CONCATENATE(\"День \",КалендарныйДень-DATE(YEAR(КалендарныйДень),1,0)))","v":"День 32"},{"$f":"IF(WEEKDAY(КалендарныйДень)=ЗначениеНачалаНедели,CONCATENATE(\"Неделя \",WEEKNUM(КалендарныйДень),\"/День \",КалендарныйДень-DATE(YEAR(КалендарныйДень),1,0)),CONCATENATE(\"День \",КалендарныйДень-DATE(YEAR(КалендарныйДень),1,0)))","v":"День 33"},{"$f":"IF(WEEKDAY(КалендарныйДень)=ЗначениеНачалаНедели,CONCATENATE(\"Неделя \",WEEKNUM(КалендарныйДень),\"/День \",КалендарныйДень-DATE(YEAR(КалендарныйДень),1,0)),CONCATENATE(\"День \",КалендарныйДень-DATE(YEAR(КалендарныйДень),1,0)))","v":"День 34"}]
[{"$nulls":4},"ЗАМЕТКИ"]
[]
[null,null,{"$f":"ДниИНедели+DATE(ГодКалендаря,1,1)-WEEKDAY(DATE(ГодКалендаря,1,1),(НачалоНедели=\"ПН\")+1)+36","v":"2018-02-04"},"2018-02-05"]
[null,null,{"$f":"IF(WEEKDAY(КалендарныйДень)=ЗначениеНачалаНедели,CONCATENATE(\"Неделя \",WEEKNUM(КалендарныйДень),\"/День \",КалендарныйДень-DATE(YEAR(КалендарныйДень),1,0)),CONCATENATE(\"День \",КалендарныйДень-DATE(YEAR(КалендарныйДень),1,0)))","v":"Неделя 6/День 35"},{"$f":"IF(WEEKDAY(КалендарныйДень)=ЗначениеНачалаНедели,CONCATENATE(\"Неделя \",WEEKNUM(КалендарныйДень),\"/День \",КалендарныйДень-DATE(YEAR(КалендарныйДень),1,0)),CONCATENATE(\"День \",КалендарныйДень-DATE(YEAR(КалендарныйДень),1,0)))","v":"День 36"}]

{"sheet":"ФЕВ","index":1,"n_rows":20,"n_cols":9,"rows_kept":20,"merged":[[16,2,17,2],[17,4,19,8]]}
[null,"ФЕВ",{"$f":"UPPER(TEXT(НачалоНедели,\"ddd\"))","v":"ВС"},{"$f":"UPPER(TEXT(D3,\"ДДД\"))","v":"ПН"},"ВТ","СР","ЧТ","ПТ","СБ"]
[null,{"$f":"ГодКалендаря","v":2018}]
[null,null,{"$f":"ДниИНедели+DATE(ГодКалендаря,2,1)-WEEKDAY(DATE(ГодКалендаря,2,1),(НачалоНедели=\"ПН\")+1)+1","v":"2018-01-28"},"2018-01-29","2018-01-30","2018-01-31","2018-02-01","2018-02-02","2018-02-03"]
[null,null,{"$f":"IF(DAY(КалендарныйДень)=1,CONCATENATE(\"Неделя \",WEEKNUM(КалендарныйДень),\"/День \",КалендарныйДень-DATE(YEAR(КалендарныйДень),1,0)),CONCATENATE(\"День \",КалендарныйДень-DATE(YEAR(КалендарныйДень),1,0)))","v":"День 28"},"День 29","День 30","День 31","Неделя 5/День 32","День 33","День 34"]
[]
[null,null,{"$f":"ДниИНедели+DATE(ГодКалендаря,2,1)-WEEKDAY(DATE(ГодКалендаря,2,1),(НачалоНедели=\"ПН\")+1)+8","v":"2018-02-04"},"2018-02-05","2018-02-06","2018-02-07","2018-02-08","2018-02-09","2018-02-10"]
[null,null,{"$f":"IF(WEEKDAY(КалендарныйДень)=ЗначениеНачалаНедели,CONCATENATE(\"Неделя \",WEEKNUM(КалендарныйДень),\"/День \",КалендарныйДень-DATE(YEAR(КалендарныйДень),1,0)),CONCATENATE(\"День \",КалендарныйДень-DATE(YEAR(КалендарныйДень),1,0)))","v":"Неделя 6/День 35"},{"$f":"IF(WEEKDAY(КалендарныйДень)=ЗначениеНачалаНедели,CONCATENATE(\"Неделя \",WEEKNUM(КалендарныйДень),\"/День \",КалендарныйДень-DATE(YEAR(КалендарныйДень),1,0)),CONCATENATE(\"День \",КалендарныйДень-DATE(YEAR(КалендарныйДень),1,0)))","v":"День 36"},{"$f":"IF(WEEKDAY(КалендарныйДень)=ЗначениеНачалаНедели,CONCATENATE(\"Неделя \",WEEKNUM(КалендарныйДень),\"/День \",КалендарныйДень-DATE(YEAR(КалендарныйДень),1,0)),CONCATENATE(\"День \",КалендарныйДень-DATE(YEAR(КалендарныйДень),1,0)))","v":"День 37"},{"$f":"IF(WEEKDAY(КалендарныйДень)=ЗначениеНачалаНедели,CONCATENATE(\"Неделя \",WEEKNUM(КалендарныйДень),\"/День \",КалендарныйДень-DATE(YEAR(КалендарныйДень),1,0)),CONCATENATE(\"День \",КалендарныйДень-DATE(YEAR(КалендарныйДень),1,0)))","v":"День 38"},{"$f":"IF(WEEKDAY(КалендарныйДень)=ЗначениеНачалаНедели,CONCATENATE(\"Неделя \",WEEKNUM(КалендарныйДень),\"/День \",КалендарныйДень-DATE(YEAR(КалендарныйДень),1,0)),CONCATENATE(\"День \",КалендарныйДень-DATE(YEAR(КалендарныйДень),1,0)))","v":"День 39"},{"$f":"IF(WEEKDAY(КалендарныйДень)=ЗначениеНачалаНедели,CONCATENATE(\"Неделя \",WEEKNUM(КалендарныйДень),\"/День \",КалендарныйДень-DATE(YEAR(КалендарныйДень),1,0)),CONCATENATE(\"День \",КалендарныйДень-DATE(YEAR(КалендарныйДень),1,0)))","v":"День 40"},{"$f":"IF(WEEKDAY(КалендарныйДень)=ЗначениеНачалаНедели,CONCATENATE(\"Неделя \",WEEKNUM(КалендарныйДень),\"/День \",КалендарныйДень-DATE(YEAR(КалендарныйДень),1,0)),CONCATENATE(\"День \",КалендарныйДень-DATE(YEAR(КалендарныйДень),1,0)))","v":"День 41"}]
[]
[null,null,{"$f":"ДниИНедели+DATE(ГодКалендаря,2,1)-WEEKDAY(DATE(ГодКалендаря,2,1),(НачалоНедели=\"ПН\")+1)+15","v":"2018-02-11"},"2018-02-12","2018-02-13","2018-02-14","2018-02-15","2018-02-16","2018-02-17"]
[null,null,{"$f":"IF(WEEKDAY(КалендарныйДень)=ЗначениеНачалаНедели,CONCATENATE(\"Неделя \",WEEKNUM(КалендарныйДень),\"/День \",КалендарныйДень-DATE(YEAR(КалендарныйДень),1,0)),CONCATENATE(\"День \",КалендарныйДень-DATE(YEAR(КалендарныйДень),1,0)))","v":"Неделя 7/День 42"},{"$f":"IF(WEEKDAY(КалендарныйДень)=ЗначениеНачалаНедели,CONCATENATE(\"Неделя \",WEEKNUM(КалендарныйДень),\"/День \",КалендарныйДень-DATE(YEAR(КалендарныйДень),1,0)),CONCATENATE(\"День \",КалендарныйДень-DATE(YEAR(КалендарныйДень),1,0)))","v":"День 43"},{"$f":"IF(WEEKDAY(КалендарныйДень)=ЗначениеНачалаНедели,CONCATENATE(\"Неделя \",WEEKNUM(КалендарныйДень),\"/День \",КалендарныйДень-DATE(YEAR(КалендарныйДень),1,0)),CONCATENATE(\"День \",КалендарныйДень-DATE(YEAR(КалендарныйДень),1,0)))","v":"День 44"},{"$f":"IF(WEEKDAY(КалендарныйДень)=ЗначениеНачалаНедели,CONCATENATE(\"Неделя \",WEEKNUM(КалендарныйДень),\"/День \",КалендарныйДень-DATE(YEAR(КалендарныйДень),1,0)),CONCATENATE(\"День \",КалендарныйДень-DATE(YEAR(КалендарныйДень),1,0)))","v":"День 45"},{"$f":"IF(WEEKDAY(КалендарныйДень)=ЗначениеНачалаНедели,CONCATENATE(\"Неделя \",WEEKNUM(КалендарныйДень),\"/День \",КалендарныйДень-DATE(YEAR(КалендарныйДень),1,0)),CONCATENATE(\"День \",КалендарныйДень-DATE(YEAR(КалендарныйДень),1,0)))","v":"День 46"},{"$f":"IF(WEEKDAY(КалендарныйДень)=ЗначениеНачалаНедели,CONCATENATE(\"Неделя \",WEEKNUM(КалендарныйДень),\"/День \",КалендарныйДень-DATE(YEAR(КалендарныйДень),1,0)),CONCATENATE(\"День \",КалендарныйДень-DATE(YEAR(КалендарныйДень),1,0)))","v":"День 47"},{"$f":"IF(WEEKDAY(КалендарныйДень)=ЗначениеНачалаНедели,CONCATENATE(\"Неделя \",WEEKNUM(КалендарныйДень),\"/День \",КалендарныйДень-DATE(YEAR(КалендарныйДень),1,0)),CONCATENATE(\"День \",КалендарныйДень-DATE(YEAR(КалендарныйДень),1,0)))","v":"День 48"}]
[]
[null,null,{"$f":"ДниИНедели+DATE(ГодКалендаря,2,1)-WEEKDAY(DATE(ГодКалендаря,2,1),(НачалоНедели=\"ПН\")+1)+22","v":"2018-02-18"},"2018-02-19","2018-02-20","2018-02-21","2018-02-22","2018-02-23","2018-02-24"]
[null,null,{"$f":"IF(WEEKDAY(КалендарныйДень)=ЗначениеНачалаНедели,CONCATENATE(\"Неделя \",WEEKNUM(КалендарныйДень),\"/День \",КалендарныйДень-DATE(YEAR(КалендарныйДень),1,0)),CONCATENATE(\"День \",КалендарныйДень-DATE(YEAR(КалендарныйДень),1,0)))","v":"Неделя 8/День 49"},{"$f":"IF(WEEKDAY(КалендарныйДень)=ЗначениеНачалаНедели,CONCATENATE(\"Неделя \",WEEKNUM(КалендарныйДень),\"/День \",КалендарныйДень-DATE(YEAR(КалендарныйДень),1,0)),CONCATENATE(\"День \",КалендарныйДень-DATE(YEAR(КалендарныйДень),1,0)))","v":"День 50"},{"$f":"IF(WEEKDAY(КалендарныйДень)=ЗначениеНачалаНедели,CONCATENATE(\"Неделя \",WEEKNUM(КалендарныйДень),\"/День \",КалендарныйДень-DATE(YEAR(КалендарныйДень),1,0)),CONCATENATE(\"День \",КалендарныйДень-DATE(YEAR(КалендарныйДень),1,0)))","v":"День 51"},{"$f":"IF(WEEKDAY(КалендарныйДень)=ЗначениеНачалаНедели,CONCATENATE(\"Неделя \",WEEKNUM(КалендарныйДень),\"/День \",КалендарныйДень-DATE(YEAR(КалендарныйДень),1,0)),CONCATENATE(\"День \",КалендарныйДень-DATE(YEAR(КалендарныйДень),1,0)))","v":"День 52"},{"$f":"IF(WEEKDAY(КалендарныйДень)=ЗначениеНачалаНедели,CONCATENATE(\"Неделя \",WEEKNUM(КалендарныйДень),\"/День \",КалендарныйДень-DATE(YEAR(КалендарныйДень),1,0)),CONCATENATE(\"День \",КалендарныйДень-DATE(YEAR(КалендарныйДень),1,0)))","v":"День 53"},{"$f":"IF(WEEKDAY(КалендарныйДень)=ЗначениеНачалаНедели,CONCATENATE(\"Неделя \",WEEKNUM(КалендарныйДень),\"/День \",КалендарныйДень-DATE(YEAR(КалендарныйДень),1,0)),CONCATENATE(\"День \",КалендарныйДень-DATE(YEAR(КалендарныйДень),1,0)))","v":"День 54"},{"$f":"IF(WEEKDAY(КалендарныйДень)=ЗначениеНачалаНедели,CONCATENATE(\"Неделя \",WEEKNUM(КалендарныйДень),\"/День \",КалендарныйДень-DATE(YEAR(КалендарныйДень),1,0)),CONCATENATE(\"День \",КалендарныйДень-DATE(YEAR(КалендарныйДень),1,0)))","v":"День 55"}]
[]
[null,null,{"$f":"ДниИНедели+DATE(ГодКалендаря,2,1)-WEEKDAY(DATE(ГодКалендаря,2,1),(НачалоНедели=\"ПН\")+1)+29","v":"2018-02-25"},"2018-02-26","2018-02-27","2018-02-28","2018-03-01","2018-03-02","2018-03-03"]
[null,null,{"$f":"IF(WEEKDAY(КалендарныйДень)=ЗначениеНачалаНедели,CONCATENATE(\"Неделя \",WEEKNUM(КалендарныйДень),\"/День \",КалендарныйДень-DATE(YEAR(КалендарныйДень),1,0)),CONCATENATE(\"День \",КалендарныйДень-DATE(YEAR(КалендарныйДень),1,0)))","v":"Неделя 9/День 56"},{"$f":"IF(WEEKDAY(КалендарныйДень)=ЗначениеНачалаНедели,CONCATENATE(\"Неделя \",WEEKNUM(КалендарныйДень),\"/День \",КалендарныйДень-DATE(YEAR(КалендарныйДень),1,0)),CONCATENATE(\"День \",КалендарныйДень-DATE(YEAR(КалендарныйДень),1,0)))","v":"День 57"},{"$f":"IF(WEEKDAY(КалендарныйДень)=ЗначениеНачалаНедели,CONCATENATE(\"Неделя \",WEEKNUM(КалендарныйДень),\"/День \",КалендарныйДень-DATE(YEAR(КалендарныйДень),1,0)),CONCATENATE(\"День \",КалендарныйДень-DATE(YEAR(КалендарныйДень),1,0)))","v":"День 58"},{"$f":"IF(WEEKDAY(КалендарныйДень)=ЗначениеНачалаНедели,CONCATENATE(\"Неделя \",WEEKNUM(КалендарныйДень),\"/День \",КалендарныйДень-DATE(YEAR(КалендарныйДень),1,0)),CONCATENATE(\"День \",КалендарныйДень-DATE(YEAR(КалендарныйДень),1,0)))","v":"День 59"},{"$f":"IF(WEEKDAY(КалендарныйДень)=ЗначениеНачалаНедели,CONCATENATE(\"Неделя \",WEEKNUM(КалендарныйДень),\"/День \",КалендарныйДень-DATE(YEAR(КалендарныйДень),1,0)),CONCATENATE(\"День \",КалендарныйДень-DATE(YEAR(КалендарныйДень),1,0)))","v":"День 60"},{"$f":"IF(WEEKDAY(КалендарныйДень)=ЗначениеНачалаНедели,CONCATENATE(\"Неделя \",WEEKNUM(КалендарныйДень),\"/День \",КалендарныйДень-DATE(YEAR(КалендарныйДень),1,0)),CONCATENATE(\"День \",КалендарныйДень-DATE(YEAR(КалендарныйДень),1,0)))","v":"День 61"},{"$f":"IF(WEEKDAY(КалендарныйДень)=ЗначениеНачалаНедели,CONCATENATE(\"Неделя \",WEEKNUM(КалендарныйДень),\"/День \",КалендарныйДень-DATE(YEAR(КалендарныйДень),1,0)),CONCATENATE(\"День \",КалендарныйДень-DATE(YEAR(КалендарныйДень),1,0)))","v":"День 62"}]
[{"$nulls":4},"ЗАМЕТКИ"]
[]
[null,null,{"$f":"ДниИНедели+DATE(ГодКалендаря,2,1)-WEEKDAY(DATE(ГодКалендаря,2,1),(НачалоНедели=\"ПН\")+1)+36","v":"2018-03-04"},"2018-03-05"]
[null,null,{"$f":"IF(WEEKDAY(КалендарныйДень)=ЗначениеНачалаНедели,CONCATENATE(\"Неделя \",WEEKNUM(КалендарныйДень),\"/День \",КалендарныйДень-DATE(YEAR(КалендарныйДень),1,0)),CONCATENATE(\"День \",КалендарныйДень-DATE(YEAR(КалендарныйДень),1,0)))","v":"Неделя 10/День 63"},{"$f":"IF(WEEKDAY(КалендарныйДень)=ЗначениеНачалаНедели,CONCATENATE(\"Неделя \",WEEKNUM(КалендарныйДень),\"/День \",КалендарныйДень-DATE(YEAR(КалендарныйДень),1,0)),CONCATENATE(\"День \",КалендарныйДень-DATE(YEAR(КалендарныйДень),1,0)))","v":"День 64"}]

{"sheet":"МАР","index":2,"n_rows":20,"n_cols":9,"rows_kept":20,"merged":[[16,2,17,2],[17,4,19,8]]}
[null,"МАР",{"$f":"UPPER(TEXT(НачалоНедели,\"ddd\"))","v":"ВС"},{"$f":"UPPER(TEXT(D3,\"ДДД\"))","v":"ПН"},"ВТ","СР","ЧТ","ПТ","СБ"]
[null,{"$f":"ГодКалендаря","v":2018}]
[null,null,{"$f":"ДниИНедели+DATE(ГодКалендаря,3,1)-WEEKDAY(DATE(ГодКалендаря,3,1),(НачалоНедели=\"ПН\")+1)+1","v":"2018-02-25"},"2018-02-26","2018-02-27","2018-02-28","2018-03-01","2018-03-02","2018-03-03"]
[null,null,{"$f":"IF(DAY(КалендарныйДень)=1,CONCATENATE(\"Неделя \",WEEKNUM(КалендарныйДень),\"/День \",КалендарныйДень-DATE(YEAR(КалендарныйДень),1,0)),CONCATENATE(\"День \",КалендарныйДень-DATE(YEAR(КалендарныйДень),1,0)))","v":"День 56"},"День 57","День 58","День 59","Неделя 9/День 60","День 61","День 62"]
[]
[null,null,{"$f":"ДниИНедели+DATE(ГодКалендаря,3,1)-WEEKDAY(DATE(ГодКалендаря,3,1),(НачалоНедели=\"ПН\")+1)+8","v":"2018-03-04"},"2018-03-05","2018-03-06","2018-03-07","2018-03-08","2018-03-09","2018-03-10"]
[null,null,{"$f":"IF(WEEKDAY(КалендарныйДень)=ЗначениеНачалаНедели,CONCATENATE(\"Неделя \",WEEKNUM(КалендарныйДень),\"/День \",КалендарныйДень-DATE(YEAR(КалендарныйДень),1,0)),CONCATENATE(\"День \",КалендарныйДень-DATE(YEAR(КалендарныйДень),1,0)))","v":"Неделя 10/День 63"},{"$f":"IF(WEEKDAY(КалендарныйДень)=ЗначениеНачалаНедели,CONCATENATE(\"Неделя \",WEEKNUM(КалендарныйДень),\"/День \",КалендарныйДень-DATE(YEAR(КалендарныйДень),1,0)),CONCATENATE(\"День \",КалендарныйДень-DATE(YEAR(КалендарныйДень),1,0)))","v":"День 64"},{"$f":"IF(WEEKDAY(КалендарныйДень)=ЗначениеНачалаНедели,CONCATENATE(\"Неделя \",WEEKNUM(КалендарныйДень),\"/День \",КалендарныйДень-DATE(YEAR(КалендарныйДень),1,0)),CONCATENATE(\"День \",КалендарныйДень-DATE(YEAR(КалендарныйДень),1,0)))","v":"День 65"},{"$f":"IF(WEEKDAY(КалендарныйДень)=ЗначениеНачалаНедели,CONCATENATE(\"Неделя \",WEEKNUM(КалендарныйДень),\"/День \",КалендарныйДень-DATE(YEAR(КалендарныйДень),1,0)),CONCATENATE(\"День \",КалендарныйДень-DATE(YEAR(КалендарныйДень),1,0)))","v":"День 66"},{"$f":"IF(WEEKDAY(КалендарныйДень)=ЗначениеНачалаНедели,CONCATENATE(\"Неделя \",WEEKNUM(КалендарныйДень),\"/День \",КалендарныйДень-DATE(YEAR(КалендарныйДень),1,0)),CONCATENATE(\"День \",КалендарныйДень-DATE(YEAR(КалендарныйДень),1,0)))","v":"День 67"},{"$f":"IF(WEEKDAY(КалендарныйДень)=ЗначениеНачалаНедели,CONCATENATE(\"Неделя \",WEEKNUM(КалендарныйДень),\"/День \",КалендарныйДень-DATE(YEAR(КалендарныйДень),1,0)),CONCATENATE(\"День \",КалендарныйДень-DATE(YEAR(КалендарныйДень),1,0)))","v":"День 68"},{"$f":"IF(WEEKDAY(КалендарныйДень)=ЗначениеНачалаНедели,CONCATENATE(\"Неделя \",WEEKNUM(КалендарныйДень),\"/День \",КалендарныйДень-DATE(YEAR(КалендарныйДень),1,0)),CONCATENATE(\"День \",КалендарныйДень-DATE(YEAR(КалендарныйДень),1,0)))","v":"День 69"}]
[]
[null,null,{"$f":"ДниИНедели+DATE(ГодКалендаря,3,1)-WEEKDAY(DATE(ГодКалендаря,3,1),(НачалоНедели=\"ПН\")+1)+15","v":"2018-03-11"},"2018-03-12","2018-03-13","2018-03-14","2018-03-15","2018-03-16","2018-03-17"]
[null,null,{"$f":"IF(WEEKDAY(КалендарныйДень)=ЗначениеНачалаНедели,CONCATENATE(\"Неделя \",WEEKNUM(КалендарныйДень),\"/День \",КалендарныйДень-DATE(YEAR(КалендарныйДень),1,0)),CONCATENATE(\"День \",КалендарныйДень-DATE(YEAR(КалендарныйДень),1,0)))","v":"Неделя 11/День 70"},{"$f":"IF(WEEKDAY(КалендарныйДень)=ЗначениеНачалаНедели,CONCATENATE(\"Неделя \",WEEKNUM(КалендарныйДень),\"/День \",КалендарныйДень-DATE(YEAR(КалендарныйДень),1,0)),CONCATENATE(\"День \",КалендарныйДень-DATE(YEAR(КалендарныйДень),1,0)))","v":"День 71"},{"$f":"IF(WEEKDAY(КалендарныйДень)=ЗначениеНачалаНедели,CONCATENATE(\"Неделя \",WEEKNUM(КалендарныйДень),\"/День \",КалендарныйДень-DATE(YEAR(КалендарныйДень),1,0)),CONCATENATE(\"День \",КалендарныйДень-DATE(YEAR(КалендарныйДень),1,0)))","v":"День 72"},{"$f":"IF(WEEKDAY(КалендарныйДень)=ЗначениеНачалаНедели,CONCATENATE(\"Неделя \",WEEKNUM(КалендарныйДень),\"/День \",КалендарныйДень-DATE(YEAR(КалендарныйДень),1,0)),CONCATENATE(\"День \",КалендарныйДень-DATE(YEAR(КалендарныйДень),1,0)))","v":"День 73"},{"$f":"IF(WEEKDAY(КалендарныйДень)=ЗначениеНачалаНедели,CONCATENATE(\"Неделя \",WEEKNUM(КалендарныйДень),\"/День \",КалендарныйДень-DATE(YEAR(КалендарныйДень),1,0)),CONCATENATE(\"День \",КалендарныйДень-DATE(YEAR(КалендарныйДень),1,0)))","v":"День 74"},{"$f":"IF(WEEKDAY(КалендарныйДень)=ЗначениеНачалаНедели,CONCATENATE(\"Неделя \",WEEKNUM(КалендарныйДень),\"/День \",КалендарныйДень-DATE(YEAR(КалендарныйДень),1,0)),CONCATENATE(\"День \",КалендарныйДень-DATE(YEAR(КалендарныйДень),1,0)))","v":"День 75"},{"$f":"IF(WEEKDAY(КалендарныйДень)=ЗначениеНачалаНедели,CONCATENATE(\"Неделя \",WEEKNUM(КалендарныйДень),\"/День \",КалендарныйДень-DATE(YEAR(КалендарныйДень),1,0)),CONCATENATE(\"День \",КалендарныйДень-DATE(YEAR(КалендарныйДень),1,0)))","v":"День 76"}]
[]
[null,null,{"$f":"ДниИНедели+DATE(ГодКалендаря,3,1)-WEEKDAY(DATE(ГодКалендаря,3,1),(НачалоНедели=\"ПН\")+1)+22","v":"2018-03-18"},"2018-03-19","2018-03-20","2018-03-21","2018-03-22","2018-03-23","2018-03-24"]
[null,null,{"$f":"IF(WEEKDAY(КалендарныйДень)=ЗначениеНачалаНедели,CONCATENATE(\"Неделя \",WEEKNUM(КалендарныйДень),\"/День \",КалендарныйДень-DATE(YEAR(КалендарныйДень),1,0)),CONCATENATE(\"День \",КалендарныйДень-DATE(YEAR(КалендарныйДень),1,0)))","v":"Неделя 12/День 77"},{"$f":"IF(WEEKDAY(КалендарныйДень)=ЗначениеНачалаНедели,CONCATENATE(\"Неделя \",WEEKNUM(КалендарныйДень),\"/День \",КалендарныйДень-DATE(YEAR(КалендарныйДень),1,0)),CONCATENATE(\"День \",КалендарныйДень-DATE(YEAR(КалендарныйДень),1,0)))","v":"День 78"},{"$f":"IF(WEEKDAY(КалендарныйДень)=ЗначениеНачалаНедели,CONCATENATE(\"Неделя \",WEEKNUM(КалендарныйДень),\"/День \",КалендарныйДень-DATE(YEAR(КалендарныйДень),1,0)),CONCATENATE(\"День \",КалендарныйДень-DATE(YEAR(КалендарныйДень),1,0)))","v":"День 79"},{"$f":"IF(WEEKDAY(КалендарныйДень)=ЗначениеНачалаНедели,CONCATENATE(\"Неделя \",WEEKNUM(КалендарныйДень),\"/День \",КалендарныйДень-DATE(YEAR(КалендарныйДень),1,0)),CONCATENATE(\"День \",КалендарныйДень-DATE(YEAR(КалендарныйДень),1,0)))","v":"День 80"},{"$f":"IF(WEEKDAY(КалендарныйДень)=ЗначениеНачалаНедели,CONCATENATE(\"Неделя \",WEEKNUM(КалендарныйДень),\"/День \",КалендарныйДень-DATE(YEAR(КалендарныйДень),1,0)),CONCATENATE(\"День \",КалендарныйДень-DATE(YEAR(КалендарныйДень),1,0)))","v":"День 81"},{"$f":"IF(WEEKDAY(КалендарныйДень)=ЗначениеНачалаНедели,CONCATENATE(\"Неделя \",WEEKNUM(КалендарныйДень),\"/День \",КалендарныйДень-DATE(YEAR(КалендарныйДень),1,0)),CONCATENATE(\"День \",КалендарныйДень-DATE(YEAR(КалендарныйДень),1,0)))","v":"День 82"},{"$f":"IF(WEEKDAY(КалендарныйДень)=ЗначениеНачалаНедели,CONCATENATE(\"Неделя \",WEEKNUM(КалендарныйДень),\"/День \",КалендарныйДень-DATE(YEAR(КалендарныйДень),1,0)),CONCATENATE(\"День \",КалендарныйДень-DATE(YEAR(КалендарныйДень),1,0)))","v":"День 83"}]
[]
[null,null,{"$f":"ДниИНедели+DATE(ГодКалендаря,3,1)-WEEKDAY(DATE(ГодКалендаря,3,1),(НачалоНедели=\"ПН\")+1)+29","v":"2018-03-25"},"2018-03-26","2018-03-27","2018-03-28","2018-03-29","2018-03-30","2018-03-31"]
[null,null,{"$f":"IF(WEEKDAY(КалендарныйДень)=ЗначениеНачалаНедели,CONCATENATE(\"Неделя \",WEEKNUM(КалендарныйДень),\"/День \",КалендарныйДень-DATE(YEAR(КалендарныйДень),1,0)),CONCATENATE(\"День \",КалендарныйДень-DATE(YEAR(КалендарныйДень),1,0)))","v":"Неделя 13/День 84"},{"$f":"IF(WEEKDAY(КалендарныйДень)=ЗначениеНачалаНедели,CONCATENATE(\"Неделя \",WEEKNUM(КалендарныйДень),\"/День \",КалендарныйДень-DATE(YEAR(КалендарныйДень),1,0)),CONCATENATE(\"День \",КалендарныйДень-DATE(YEAR(КалендарныйДень),1,0)))","v":"День 85"},{"$f":"IF(WEEKDAY(КалендарныйДень)=ЗначениеНачалаНедели,CONCATENATE(\"Неделя \",WEEKNUM(КалендарныйДень),\"/День \",КалендарныйДень-DATE(YEAR(КалендарныйДень),1,0)),CONCATENATE(\"День \",КалендарныйДень-DATE(YEAR(КалендарныйДень),1,0)))","v":"День 86"},{"$f":"IF(WEEKDAY(КалендарныйДень)=ЗначениеНачалаНедели,CONCATENATE(\"Неделя \",WEEKNUM(КалендарныйДень),\"/День \",КалендарныйДень-DATE(YEAR(КалендарныйДень),1,0)),CONCATENATE(\"День \",КалендарныйДень-DATE(YEAR(КалендарныйДень),1,0)))","v":"День 87"},{"$f":"IF(WEEKDAY(КалендарныйДень)=ЗначениеНачалаНедели,CONCATENATE(\"Неделя \",WEEKNUM(КалендарныйДень),\"/День \",КалендарныйДень-DATE(YEAR(КалендарныйДень),1,0)),CONCATENATE(\"День \",КалендарныйДень-DATE(YEAR(КалендарныйДень),1,0)))","v":"День 88"},{"$f":"IF(WEEKDAY(КалендарныйДень)=ЗначениеНачалаНедели,CONCATENATE(\"Неделя \",WEEKNUM(КалендарныйДень),\"/День \",КалендарныйДень-DATE(YEAR(КалендарныйДень),1,0)),CONCATENATE(\"День \",КалендарныйДень-DATE(YEAR(КалендарныйДень),1,0)))","v":"День 89"},{"$f":"IF(WEEKDAY(КалендарныйДень)=ЗначениеНачалаНедели,CONCATENATE(\"Неделя \",WEEKNUM(КалендарныйДень),\"/День \",КалендарныйДень-DATE(YEAR(КалендарныйДень),1,0)),CONCATENATE(\"День \",КалендарныйДень-DATE(YEAR(КалендарныйДень),1,0)))","v":"День 90"}]
[{"$nulls":4},"ЗАМЕТКИ"]
[]
[null,null,{"$f":"ДниИНедели+DATE(ГодКалендаря,3,1)-WEEKDAY(DATE(ГодКалендаря,3,1),(НачалоНедели=\"ПН\")+1)+36","v":"2018-04-01"},"2018-04-02"]
[null,null,{"$f":"IF(WEEKDAY(КалендарныйДень)=ЗначениеНачалаНедели,CONCATENATE(\"Неделя \",WEEKNUM(КалендарныйДень),\"/День \",КалендарныйДень-DATE(YEAR(КалендарныйДень),1,0)),CONCATENATE(\"День \",КалендарныйДень-DATE(YEAR(КалендарныйДень),1,0)))","v":"Неделя 14/День 91"},{"$f":"IF(WEEKDAY(КалендарныйДень)=ЗначениеНачалаНедели,CONCATENATE(\"Неделя \",WEEKNUM(КалендарныйДень),\"/День \",КалендарныйДень-DATE(YEAR(КалендарныйДень),1,0)),CONCATENATE(\"День \",КалендарныйДень-DATE(YEAR(КалендарныйДень),1,0)))","v":"День 92"}]

{"sheet":"АПР","index":3,"n_rows":20,"n_cols":9,"rows_kept":20,"merged":[[16,2,17,2],[17,4,19,8]]}
[null,"АПР",{"$f":"UPPER(TEXT(НачалоНедели,\"ddd\"))","v":"ВС"},{"$f":"UPPER(TEXT(D3,\"ДДД\"))","v":"ПН"},"ВТ","СР","ЧТ","ПТ","СБ"]
[null,{"$f":"ГодКалендаря","v":2018}]
[null,null,{"$f":"ДниИНедели+DATE(ГодКалендаря,4,1)-WEEKDAY(DATE(ГодКалендаря,4,1),(НачалоНедели=\"ПН\")+1)+1","v":"2018-04-01"},"2018-04-02","2018-04-03","2018-04-04","2018-04-05","2018-04-06","2018-04-07"]
[null,null,{"$f":"IF(DAY(КалендарныйДень)=1,CONCATENATE(\"Неделя \",WEEKNUM(КалендарныйДень),\"/День \",КалендарныйДень-DATE(YEAR(КалендарныйДень),1,0)),CONCATENATE(\"День \",КалендарныйДень-DATE(YEAR(КалендарныйДень),1,0)))","v":"Неделя 14/День 91"},"День 92","День 93","День 94","День 95","День 96","День 97"]
[]
[null,null,{"$f":"ДниИНедели+DATE(ГодКалендаря,4,1)-WEEKDAY(DATE(ГодКалендаря,4,1),(НачалоНедели=\"ПН\")+1)+8","v":"2018-04-08"},"2018-04-09","2018-04-10","2018-04-11","2018-04-12","2018-04-13","2018-04-14"]
[null,null,{"$f":"IF(WEEKDAY(КалендарныйДень)=ЗначениеНачалаНедели,CONCATENATE(\"Неделя \",WEEKNUM(КалендарныйДень),\"/День \",КалендарныйДень-DATE(YEAR(КалендарныйДень),1,0)),CONCATENATE(\"День \",КалендарныйДень-DATE(YEAR(КалендарныйДень),1,0)))","v":"Неделя 15/День 98"},{"$f":"IF(WEEKDAY(КалендарныйДень)=ЗначениеНачалаНедели,CONCATENATE(\"Неделя \",WEEKNUM(КалендарныйДень),\"/День \",КалендарныйДень-DATE(YEAR(КалендарныйДень),1,0)),CONCATENATE(\"День \",КалендарныйДень-DATE(YEAR(КалендарныйДень),1,0)))","v":"День 99"},{"$f":"IF(WEEKDAY(КалендарныйДень)=ЗначениеНачалаНедели,CONCATENATE(\"Неделя \",WEEKNUM(КалендарныйДень),\"/День \",КалендарныйДень-DATE(YEAR(КалендарныйДень),1,0)),CONCATENATE(\"День \",КалендарныйДень-DATE(YEAR(КалендарныйДень),1,0)))","v":"День 100"},{"$f":"IF(WEEKDAY(КалендарныйДень)=ЗначениеНачалаНедели,CONCATENATE(\"Неделя \",WEEKNUM(КалендарныйДень),\"/День \",КалендарныйДень-DATE(YEAR(КалендарныйДень),1,0)),CONCATENATE(\"День \",КалендарныйДень-DATE(YEAR(КалендарныйДень),1,0)))","v":"День 101"},{"$f":"IF(WEEKDAY(КалендарныйДень)=ЗначениеНачалаНедели,CONCATENATE(\"Неделя \",WEEKNUM(КалендарныйДень),\"/День \",КалендарныйДень-DATE(YEAR(КалендарныйДень),1,0)),CONCATENATE(\"День \",КалендарныйДень-DATE(YEAR(КалендарныйДень),1,0)))","v":"День 102"},{"$f":"IF(WEEKDAY(КалендарныйДень)=ЗначениеНачалаНедели,CONCATENATE(\"Неделя \",WEEKNUM(КалендарныйДень),\"/День \",КалендарныйДень-DATE(YEAR(КалендарныйДень),1,0)),CONCATENATE(\"День \",КалендарныйДень-DATE(YEAR(КалендарныйДень),1,0)))","v":"День 103"},{"$f":"IF(WEEKDAY(КалендарныйДень)=ЗначениеНачалаНедели,CONCATENATE(\"Неделя \",WEEKNUM(КалендарныйДень),\"/День \",КалендарныйДень-DATE(YEAR(КалендарныйДень),1,0)),CONCATENATE(\"День \",КалендарныйДень-DATE(YEAR(КалендарныйДень),1,0)))","v":"День 104"}]
[]
[null,null,{"$f":"ДниИНедели+DATE(ГодКалендаря,4,1)-WEEKDAY(DATE(ГодКалендаря,4,1),(НачалоНедели=\"ПН\")+1)+15","v":"2018-04-15"},"2018-04-16","2018-04-17","2018-04-18","2018-04-19","2018-04-20","2018-04-21"]
[null,null,{"$f":"IF(WEEKDAY(КалендарныйДень)=ЗначениеНачалаНедели,CONCATENATE(\"Неделя \",WEEKNUM(КалендарныйДень),\"/День \",КалендарныйДень-DATE(YEAR(КалендарныйДень),1,0)),CONCATENATE(\"День \",КалендарныйДень-DATE(YEAR(КалендарныйДень),1,0)))","v":"Неделя 16/День 105"},{"$f":"IF(WEEKDAY(КалендарныйДень)=ЗначениеНачалаНедели,CONCATENATE(\"Неделя \",WEEKNUM(КалендарныйДень),\"/День \",КалендарныйДень-DATE(YEAR(КалендарныйДень),1,0)),CONCATENATE(\"День \",КалендарныйДень-DATE(YEAR(КалендарныйДень),1,0)))","v":"День 106"},{"$f":"IF(WEEKDAY(КалендарныйДень)=ЗначениеНачалаНедели,CONCATENATE(\"Неделя \",WEEKNUM(КалендарныйДень),\"/День \",КалендарныйДень-DATE(YEAR(КалендарныйДень),1,0)),CONCATENATE(\"День \",КалендарныйДень-DATE(YEAR(КалендарныйДень),1,0)))","v":"День 107"},{"$f":"IF(WEEKDAY(КалендарныйДень)=ЗначениеНачалаНедели,CONCATENATE(\"Неделя \",WEEKNUM(КалендарныйДень),\"/День \",КалендарныйДень-DATE(YEAR(КалендарныйДень),1,0)),CONCATENATE(\"День \",КалендарныйДень-DATE(YEAR(КалендарныйДень),1,0)))","v":"День 108"},{"$f":"IF(WEEKDAY(КалендарныйДень)=ЗначениеНачалаНедели,CONCATENATE(\"Неделя \",WEEKNUM(КалендарныйДень),\"/День \",КалендарныйДень-DATE(YEAR(КалендарныйДень),1,0)),CONCATENATE(\"День \",КалендарныйДень-DATE(YEAR(КалендарныйДень),1,0)))","v":"День 109"},{"$f":"IF(WEEKDAY(КалендарныйДень)=ЗначениеНачалаНедели,CONCATENATE(\"Неделя \",WEEKNUM(КалендарныйДень),\"/День \",КалендарныйДень-DATE(YEAR(КалендарныйДень),1,0)),CONCATENATE(\"День \",КалендарныйДень-DATE(YEAR(КалендарныйДень),1,0)))","v":"День 110"},{"$f":"IF(WEEKDAY(КалендарныйДень)=ЗначениеНачалаНедели,CONCATENATE(\"Неделя \",WEEKNUM(КалендарныйДень),\"/День \",КалендарныйДень-DATE(YEAR(КалендарныйДень),1,0)),CONCATENATE(\"День \",КалендарныйДень-DATE(YEAR(КалендарныйДень),1,0)))","v":"День 111"}]
[]
[null,null,{"$f":"ДниИНедели+DATE(ГодКалендаря,4,1)-WEEKDAY(DATE(ГодКалендаря,4,1),(НачалоНедели=\"ПН\")+1)+22","v":"2018-04-22"},"2018-04-23","2018-04-24","2018-04-25","2018-04-26","2018-04-27","2018-04-28"]
[null,null,{"$f":"IF(WEEKDAY(КалендарныйДень)=ЗначениеНачалаНедели,CONCATENATE(\"Неделя \",WEEKNUM(КалендарныйДень),\"/День \",КалендарныйДень-DATE(YEAR(КалендарныйДень),1,0)),CONCATENATE(\"День \",КалендарныйДень-DATE(YEAR(КалендарныйДень),1,0)))","v":"Неделя 17/День 112"},{"$f":"IF(WEEKDAY(КалендарныйДень)=ЗначениеНачалаНедели,CONCATENATE(\"Неделя \",WEEKNUM(КалендарныйДень),\"/День \",КалендарныйДень-DATE(YEAR(КалендарныйДень),1,0)),CONCATENATE(\"День \",КалендарныйДень-DATE(YEAR(КалендарныйДень),1,0)))","v":"День 113"},{"$f":"IF(WEEKDAY(КалендарныйДень)=ЗначениеНачалаНедели,CONCATENATE(\"Неделя \",WEEKNUM(КалендарныйДень),\"/День \",КалендарныйДень-DATE(YEAR(КалендарныйДень),1,0)),CONCATENATE(\"День \",КалендарныйДень-DATE(YEAR(КалендарныйДень),1,0)))","v":"День 114"},{"$f":"IF(WEEKDAY(КалендарныйДень)=ЗначениеНачалаНедели,CONCATENATE(\"Неделя \",WEEKNUM(КалендарныйДень),\"/День \",КалендарныйДень-DATE(YEAR(КалендарныйДень),1,0)),CONCATENATE(\"День \",КалендарныйДень-DATE(YEAR(КалендарныйДень),1,0)))","v":"День 115"},{"$f":"IF(WEEKDAY(КалендарныйДень)=ЗначениеНачалаНедели,CONCATENATE(\"Неделя \",WEEKNUM(КалендарныйДень),\"/День \",КалендарныйДень-DATE(YEAR(КалендарныйДень),1,0)),CONCATENATE(\"День \",КалендарныйДень-DATE(YEAR(КалендарныйДень),1,0)))","v":"День 116"},{"$f":"IF(WEEKDAY(КалендарныйДень)=ЗначениеНачалаНедели,CONCATENATE(\"Неделя \",WEEKNUM(КалендарныйДень),\"/День \",КалендарныйДень-DATE(YEAR(КалендарныйДень),1,0)),CONCATENATE(\"День \",КалендарныйДень-DATE(YEAR(КалендарныйДень),1,0)))","v":"День 117"},{"$f":"IF(WEEKDAY(КалендарныйДень)=ЗначениеНачалаНедели,CONCATENATE(\"Неделя \",WEEKNUM(КалендарныйДень),\"/День \",КалендарныйДень-DATE(YEAR(КалендарныйДень),1,0)),CONCATENATE(\"День \",КалендарныйДень-DATE(YEAR(КалендарныйДень),1,0)))","v":"День 118"}]
[]
[null,null,{"$f":"ДниИНедели+DATE(ГодКалендаря,4,1)-WEEKDAY(DATE(ГодКалендаря,4,1),(НачалоНедели=\"ПН\")+1)+29","v":"2018-04-29"},"2018-04-30","2018-05-01","2018-05-02","2018-05-03","2018-05-04","2018-05-05"]
[null,null,{"$f":"IF(WEEKDAY(КалендарныйДень)=ЗначениеНачалаНедели,CONCATENATE(\"Неделя \",WEEKNUM(КалендарныйДень),\"/День \",КалендарныйДень-DATE(YEAR(КалендарныйДень),1,0)),CONCATENATE(\"День \",КалендарныйДень-DATE(YEAR(КалендарныйДень),1,0)))","v":"Неделя 18/День 119"},{"$f":"IF(WEEKDAY(КалендарныйДень)=ЗначениеНачалаНедели,CONCATENATE(\"Неделя \",WEEKNUM(КалендарныйДень),\"/День \",КалендарныйДень-DATE(YEAR(КалендарныйДень),1,0)),CONCATENATE(\"День \",КалендарныйДень-DATE(YEAR(КалендарныйДень),1,0)))","v":"День 120"},{"$f":"IF(WEEKDAY(КалендарныйДень)=ЗначениеНачалаНедели,CONCATENATE(\"Неделя \",WEEKNUM(КалендарныйДень),\"/День \",КалендарныйДень-DATE(YEAR(КалендарныйДень),1,0)),CONCATENATE(\"День \",КалендарныйДень-DATE(YEAR(КалендарныйДень),1,0)))","v":"День 121"},{"$f":"IF(WEEKDAY(КалендарныйДень)=ЗначениеНачалаНедели,CONCATENATE(\"Неделя \",WEEKNUM(КалендарныйДень),\"/День \",КалендарныйДень-DATE(YEAR(КалендарныйДень),1,0)),CONCATENATE(\"День \",КалендарныйДень-DATE(YEAR(КалендарныйДень),1,0)))","v":"День 122"},{"$f":"IF(WEEKDAY(КалендарныйДень)=ЗначениеНачалаНедели,CONCATENATE(\"Неделя \",WEEKNUM(КалендарныйДень),\"/День \",КалендарныйДень-DATE(YEAR(КалендарныйДень),1,0)),CONCATENATE(\"День \",КалендарныйДень-DATE(YEAR(КалендарныйДень),1,0)))","v":"День 123"},{"$f":"IF(WEEKDAY(КалендарныйДень)=ЗначениеНачалаНедели,CONCATENATE(\"Неделя \",WEEKNUM(КалендарныйДень),\"/День \",КалендарныйДень-DATE(YEAR(КалендарныйДень),1,0)),CONCATENATE(\"День \",КалендарныйДень-DATE(YEAR(КалендарныйДень),1,0)))","v":"День 124"},{"$f":"IF(WEEKDAY(КалендарныйДень)=ЗначениеНачалаНедели,CONCATENATE(\"Неделя \",WEEKNUM(КалендарныйДень),\"/День \",КалендарныйДень-DATE(YEAR(КалендарныйДень),1,0)),CONCATENATE(\"День \",КалендарныйДень-DATE(YEAR(КалендарныйДень),1,0)))","v":"День 125"}]
[{"$nulls":4},"ЗАМЕТКИ"]
[]
[null,null,{"$f":"ДниИНедели+DATE(ГодКалендаря,4,1)-WEEKDAY(DATE(ГодКалендаря,4,1),(НачалоНедели=\"ПН\")+1)+36","v":"2018-05-06"},"2018-05-07"]
[null,null,{"$f":"IF(WEEKDAY(КалендарныйДень)=ЗначениеНачалаНедели,CONCATENATE(\"Неделя \",WEEKNUM(КалендарныйДень),\"/День \",КалендарныйДень-DATE(YEAR(КалендарныйДень),1,0)),CONCATENATE(\"День \",КалендарныйДень-DATE(YEAR(КалендарныйДень),1,0)))","v":"Неделя 19/День 126"},{"$f":"IF(WEEKDAY(КалендарныйДень)=ЗначениеНачалаНедели,CONCATENATE(\"Неделя \",WEEKNUM(КалендарныйДень),\"/День \",КалендарныйДень-DATE(YEAR(КалендарныйДень),1,0)),CONCATENATE(\"День \",КалендарныйДень-DATE(YEAR(КалендарныйДень),1,0)))","v":"День 127"}]

{"sheet":"МАЙ","index":4,"n_rows":20,"n_cols":9,"rows_kept":20,"merged":[[16,2,17,2],[17,4,19,8]]}
[null,"МАЙ",{"$f":"UPPER(TEXT(НачалоНедели,\"ddd\"))","v":"ВС"},{"$f":"UPPER(TEXT(D3,\"ДДД\"))","v":"ПН"},"ВТ","СР","ЧТ","ПТ","СБ"]
[null,{"$f":"ГодКалендаря","v":2018}]
[null,null,{"$f":"ДниИНедели+DATE(ГодКалендаря,5,1)-WEEKDAY(DATE(ГодКалендаря,5,1),(НачалоНедели=\"ПН\")+1)+1","v":"2018-04-29"},"2018-04-30","2018-05-01","2018-05-02","2018-05-03","2018-05-04","2018-05-05"]
[null,null,{"$f":"IF(DAY(КалендарныйДень)=1,CONCATENATE(\"Неделя \",WEEKNUM(КалендарныйДень),\"/День \",КалендарныйДень-DATE(YEAR(КалендарныйДень),1,0)),CONCATENATE(\"День \",КалендарныйДень-DATE(YEAR(КалендарныйДень),1,0)))","v":"День 119"},"День 120","Неделя 18/День 121","День 122","День 123","День 124","День 125"]
[]
[null,null,{"$f":"ДниИНедели+DATE(ГодКалендаря,5,1)-WEEKDAY(DATE(ГодКалендаря,5,1),(НачалоНедели=\"ПН\")+1)+8","v":"2018-05-06"},"2018-05-07","2018-05-08","2018-05-09","2018-05-10","2018-05-11","2018-05-12"]
[null,null,{"$f":"IF(WEEKDAY(КалендарныйДень)=ЗначениеНачалаНедели,CONCATENATE(\"Неделя \",WEEKNUM(КалендарныйДень),\"/День \",КалендарныйДень-DATE(YEAR(КалендарныйДень),1,0)),CONCATENATE(\"День \",КалендарныйДень-DATE(YEAR(КалендарныйДень),1,0)))","v":"Неделя 19/День 126"},{"$f":"IF(WEEKDAY(КалендарныйДень)=ЗначениеНачалаНедели,CONCATENATE(\"Неделя \",WEEKNUM(КалендарныйДень),\"/День \",КалендарныйДень-DATE(YEAR(КалендарныйДень),1,0)),CONCATENATE(\"День \",КалендарныйДень-DATE(YEAR(КалендарныйДень),1,0)))","v":"День 127"},{"$f":"IF(WEEKDAY(КалендарныйДень)=ЗначениеНачалаНедели,CONCATENATE(\"Неделя \",WEEKNUM(КалендарныйДень),\"/День \",КалендарныйДень-DATE(YEAR(КалендарныйДень),1,0)),CONCATENATE(\"День \",КалендарныйДень-DATE(YEAR(КалендарныйДень),1,0)))","v":"День 128"},{"$f":"IF(WEEKDAY(КалендарныйДень)=ЗначениеНачалаНедели,CONCATENATE(\"Неделя \",WEEKNUM(КалендарныйДень),\"/День \",КалендарныйДень-DATE(YEAR(КалендарныйДень),1,0)),CONCATENATE(\"День \",КалендарныйДень-DATE(YEAR(КалендарныйДень),1,0)))","v":"День 129"},{"$f":"IF(WEEKDAY(КалендарныйДень)=ЗначениеНачалаНедели,CONCATENATE(\"Неделя \",WEEKNUM(КалендарныйДень),\"/День \",КалендарныйДень-DATE(YEAR(КалендарныйДень),1,0)),CONCATENATE(\"День \",КалендарныйДень-DATE(YEAR(КалендарныйДень),1,0)))","v":"День 130"},{"$f":"IF(WEEKDAY(КалендарныйДень)=ЗначениеНачалаНедели,CONCATENATE(\"Неделя \",WEEKNUM(КалендарныйДень),\"/День \",КалендарныйДень-DATE(YEAR(КалендарныйДень),1,0)),CONCATENATE(\"День \",КалендарныйДень-DATE(YEAR(КалендарныйДень),1,0)))","v":"День 131"},{"$f":"IF(WEEKDAY(КалендарныйДень)=ЗначениеНачалаНедели,CONCATENATE(\"Неделя \",WEEKNUM(КалендарныйДень),\"/День \",КалендарныйДень-DATE(YEAR(КалендарныйДень),1,0)),CONCATENATE(\"День \",КалендарныйДень-DATE(YEAR(КалендарныйДень),1,0)))","v":"День 132"}]
[]
[null,null,{"$f":"ДниИНедели+DATE(ГодКалендаря,5,1)-WEEKDAY(DATE(ГодКалендаря,5,1),(НачалоНедели=\"ПН\")+1)+15","v":"2018-05-13"},"2018-05-14","2018-05-15","2018-05-16","2018-05-17","2018-05-18","2018-05-19"]
[null,null,{"$f":"IF(WEEKDAY(КалендарныйДень)=ЗначениеНачалаНедели,CONCATENATE(\"Неделя \",WEEKNUM(КалендарныйДень),\"/День \",КалендарныйДень-DATE(YEAR(КалендарныйДень),1,0)),CONCATENATE(\"День \",КалендарныйДень-DATE(YEAR(КалендарныйДень),1,0)))","v":"Неделя 20/День 133"},{"$f":"IF(WEEKDAY(КалендарныйДень)=ЗначениеНачалаНедели,CONCATENATE(\"Неделя \",WEEKNUM(КалендарныйДень),\"/День \",КалендарныйДень-DATE(YEAR(КалендарныйДень),1,0)),CONCATENATE(\"День \",КалендарныйДень-DATE(YEAR(КалендарныйДень),1,0)))","v":"День 134"},{"$f":"IF(WEEKDAY(КалендарныйДень)=ЗначениеНачалаНедели,CONCATENATE(\"Неделя \",WEEKNUM(КалендарныйДень),\"/День \",КалендарныйДень-DATE(YEAR(КалендарныйДень),1,0)),CONCATENATE(\"День \",КалендарныйДень-DATE(YEAR(КалендарныйДень),1,0)))","v":"День 135"},{"$f":"IF(WEEKDAY(КалендарныйДень)=ЗначениеНачалаНедели,CONCATENATE(\"Неделя \",WEEKNUM(КалендарныйДень),\"/День \",КалендарныйДень-DATE(YEAR(КалендарныйДень),1,0)),CONCATENATE(\"День \",КалендарныйДень-DATE(YEAR(КалендарныйДень),1,0)))","v":"День 136"},{"$f":"IF(WEEKDAY(КалендарныйДень)=ЗначениеНачалаНедели,CONCATENATE(\"Неделя \",WEEKNUM(КалендарныйДень),\"/День \",КалендарныйДень-DATE(YEAR(КалендарныйДень),1,0)),CONCATENATE(\"День \",КалендарныйДень-DATE(YEAR(КалендарныйДень),1,0)))","v":"День 137"},{"$f":"IF(WEEKDAY(КалендарныйДень)=ЗначениеНачалаНедели,CONCATENATE(\"Неделя \",WEEKNUM(КалендарныйДень),\"/День \",КалендарныйДень-DATE(YEAR(КалендарныйДень),1,0)),CONCATENATE(\"День \",КалендарныйДень-DATE(YEAR(КалендарныйДень),1,0)))","v":"День 138"},{"$f":"IF(WEEKDAY(КалендарныйДень)=ЗначениеНачалаНедели,CONCATENATE(\"Неделя \",WEEKNUM(КалендарныйДень),\"/День \",КалендарныйДень-DATE(YEAR(КалендарныйДень),1,0)),CONCATENATE(\"День \",КалендарныйДень-DATE(YEAR(КалендарныйДень),1,0)))","v":"День 139"}]
[]
[null,null,{"$f":"ДниИНедели+DATE(ГодКалендаря,5,1)-WEEKDAY(DATE(ГодКалендаря,5,1),(НачалоНедели=\"ПН\")+1)+22","v":"2018-05-20"},"2018-05-21","2018-05-22","2018-05-23","2018-05-24","2018-05-25","2018-05-26"]
[null,null,{"$f":"IF(WEEKDAY(КалендарныйДень)=ЗначениеНачалаНедели,CONCATENATE(\"Неделя \",WEEKNUM(КалендарныйДень),\"/День \",КалендарныйДень-DATE(YEAR(КалендарныйДень),1,0)),CONCATENATE(\"День \",КалендарныйДень-DATE(YEAR(КалендарныйДень),1,0)))","v":"Неделя 21/День 140"},{"$f":"IF(WEEKDAY(КалендарныйДень)=ЗначениеНачалаНедели,CONCATENATE(\"Неделя \",WEEKNUM(КалендарныйДень),\"/День \",КалендарныйДень-DATE(YEAR(КалендарныйДень),1,0)),CONCATENATE(\"День \",КалендарныйДень-DATE(YEAR(КалендарныйДень),1,0)))","v":"День 141"},{"$f":"IF(WEEKDAY(КалендарныйДень)=ЗначениеНачалаНедели,CONCATENATE(\"Неделя \",WEEKNUM(КалендарныйДень),\"/День \",КалендарныйДень-DATE(YEAR(КалендарныйДень),1,0)),CONCATENATE(\"День \",КалендарныйДень-DATE(YEAR(КалендарныйДень),1,0)))","v":"День 142"},{"$f":"IF(WEEKDAY(КалендарныйДень)=ЗначениеНачалаНедели,CONCATENATE(\"Неделя \",WEEKNUM(КалендарныйДень),\"/День \",КалендарныйДень-DATE(YEAR(КалендарныйДень),1,0)),CONCATENATE(\"День \",КалендарныйДень-DATE(YEAR(КалендарныйДень),1,0)))","v":"День 143"},{"$f":"IF(WEEKDAY(КалендарныйДень)=ЗначениеНачалаНедели,CONCATENATE(\"Неделя \",WEEKNUM(КалендарныйДень),\"/День \",КалендарныйДень-DATE(YEAR(КалендарныйДень),1,0)),CONCATENATE(\"День \",КалендарныйДень-DATE(YEAR(КалендарныйДень),1,0)))","v":"День 144"},{"$f":"IF(WEEKDAY(КалендарныйДень)=ЗначениеНачалаНедели,CONCATENATE(\"Неделя \",WEEKNUM(КалендарныйДень),\"/День \",КалендарныйДень-DATE(YEAR(КалендарныйДень),1,0)),CONCATENATE(\"День \",КалендарныйДень-DATE(YEAR(КалендарныйДень),1,0)))","v":"День 145"},{"$f":"IF(WEEKDAY(КалендарныйДень)=ЗначениеНачалаНедели,CONCATENATE(\"Неделя \",WEEKNUM(КалендарныйДень),\"/День \",КалендарныйДень-DATE(YEAR(КалендарныйДень),1,0)),CONCATENATE(\"День \",КалендарныйДень-DATE(YEAR(КалендарныйДень),1,0)))","v":"День 146"}]
[]
[null,null,{"$f":"ДниИНедели+DATE(ГодКалендаря,5,1)-WEEKDAY(DATE(ГодКалендаря,5,1),(НачалоНедели=\"ПН\")+1)+29","v":"2018-05-27"},"2018-05-28","2018-05-29","2018-05-30","2018-05-31","2018-06-01","2018-06-02"]
[null,null,{"$f":"IF(WEEKDAY(КалендарныйДень)=ЗначениеНачалаНедели,CONCATENATE(\"Неделя \",WEEKNUM(КалендарныйДень),\"/День \",КалендарныйДень-DATE(YEAR(КалендарныйДень),1,0)),CONCATENATE(\"День \",КалендарныйДень-DATE(YEAR(КалендарныйДень),1,0)))","v":"Неделя 22/День 147"},{"$f":"IF(WEEKDAY(КалендарныйДень)=ЗначениеНачалаНедели,CONCATENATE(\"Неделя \",WEEKNUM(КалендарныйДень),\"/День \",КалендарныйДень-DATE(YEAR(КалендарныйДень),1,0)),CONCATENATE(\"День \",КалендарныйДень-DATE(YEAR(КалендарныйДень),1,0)))","v":"День 148"},{"$f":"IF(WEEKDAY(КалендарныйДень)=ЗначениеНачалаНедели,CONCATENATE(\"Неделя \",WEEKNUM(КалендарныйДень),\"/День \",КалендарныйДень-DATE(YEAR(КалендарныйДень),1,0)),CONCATENATE(\"День \",КалендарныйДень-DATE(YEAR(КалендарныйДень),1,0)))","v":"День 149"},{"$f":"IF(WEEKDAY(КалендарныйДень)=ЗначениеНачалаНедели,CONCATENATE(\"Неделя \",WEEKNUM(КалендарныйДень),\"/День \",КалендарныйДень-DATE(YEAR(КалендарныйДень),1,0)),CONCATENATE(\"День \",КалендарныйДень-DATE(YEAR(КалендарныйДень),1,0)))","v":"День 150"},{"$f":"IF(WEEKDAY(КалендарныйДень)=ЗначениеНачалаНедели,CONCATENATE(\"Неделя \",WEEKNUM(КалендарныйДень),\"/День \",КалендарныйДень-DATE(YEAR(КалендарныйДень),1,0)),CONCATENATE(\"День \",КалендарныйДень-DATE(YEAR(КалендарныйДень),1,0)))","v":"День 151"},{"$f":"IF(WEEKDAY(КалендарныйДень)=ЗначениеНачалаНедели,CONCATENATE(\"Неделя \",WEEKNUM(КалендарныйДень),\"/День \",КалендарныйДень-DATE(YEAR(КалендарныйДень),1,0)),CONCATENATE(\"День \",КалендарныйДень-DATE(YEAR(КалендарныйДень),1,0)))","v":"День 152"},{"$f":"IF(WEEKDAY(КалендарныйДень)=ЗначениеНачалаНедели,CONCATENATE(\"Неделя \",WEEKNUM(КалендарныйДень),\"/День \",КалендарныйДень-DATE(YEAR(КалендарныйДень),1,0)),CONCATENATE(\"День \",КалендарныйДень-DATE(YEAR(КалендарныйДень),1,0)))","v":"День 153"}]
[{"$nulls":4},"ЗАМЕТКИ"]
[]
[null,null,{"$f":"ДниИНедели+DATE(ГодКалендаря,5,1)-WEEKDAY(DATE(ГодКалендаря,5,1),(НачалоНедели=\"ПН\")+1)+36","v":"2018-06-03"},"2018-06-04"]
[null,null,{"$f":"IF(WEEKDAY(КалендарныйДень)=ЗначениеНачалаНедели,CONCATENATE(\"Неделя \",WEEKNUM(КалендарныйДень),\"/День \",КалендарныйДень-DATE(YEAR(КалендарныйДень),1,0)),CONCATENATE(\"День \",КалендарныйДень-DATE(YEAR(КалендарныйДень),1,0)))","v":"Неделя 23/День 154"},{"$f":"IF(WEEKDAY(КалендарныйДень)=ЗначениеНачалаНедели,CONCATENATE(\"Неделя \",WEEKNUM(КалендарныйДень),\"/День \",КалендарныйДень-DATE(YEAR(КалендарныйДень),1,0)),CONCATENATE(\"День \",КалендарныйДень-DATE(YEAR(КалендарныйДень),1,0)))","v":"День 155"}]

{"sheet":"ИЮН","index":5,"n_rows":20,"n_cols":9,"rows_kept":20,"merged":[[16,2,17,2],[17,4,19,8]]}
[null,"ИЮН",{"$f":"UPPER(TEXT(НачалоНедели,\"ddd\"))","v":"ВС"},{"$f":"UPPER(TEXT(D3,\"ДДД\"))","v":"ПН"},"ВТ","СР","ЧТ","ПТ","СБ"]
[null,{"$f":"ГодКалендаря","v":2018}]
[null,null,{"$f":"ДниИНедели+DATE(ГодКалендаря,6,1)-WEEKDAY(DATE(ГодКалендаря,6,1),(НачалоНедели=\"ПН\")+1)+1","v":"2018-05-27"},"2018-05-28","2018-05-29","2018-05-30","2018-05-31","2018-06-01","2018-06-02"]
[null,null,{"$f":"IF(DAY(КалендарныйДень)=1,CONCATENATE(\"Неделя \",WEEKNUM(КалендарныйДень),\"/День \",КалендарныйДень-DATE(YEAR(КалендарныйДень),1,0)),CONCATENATE(\"День \",КалендарныйДень-DATE(YEAR(КалендарныйДень),1,0)))","v":"День 147"},"День 148","День 149","День 150","День 151","Неделя 22/День 152","День 153"]
[]
[null,null,{"$f":"ДниИНедели+DATE(ГодКалендаря,6,1)-WEEKDAY(DATE(ГодКалендаря,6,1),(НачалоНедели=\"ПН\")+1)+8","v":"2018-06-03"},"2018-06-04","2018-06-05","2018-06-06","2018-06-07","2018-06-08","2018-06-09"]
[null,null,{"$f":"IF(WEEKDAY(КалендарныйДень)=ЗначениеНачалаНедели,CONCATENATE(\"Неделя \",WEEKNUM(КалендарныйДень),\"/День \",КалендарныйДень-DATE(YEAR(КалендарныйДень),1,0)),CONCATENATE(\"День \",КалендарныйДень-DATE(YEAR(КалендарныйДень),1,0)))","v":"Неделя 23/День 154"},{"$f":"IF(WEEKDAY(КалендарныйДень)=ЗначениеНачалаНедели,CONCATENATE(\"Неделя \",WEEKNUM(КалендарныйДень),\"/День \",КалендарныйДень-DATE(YEAR(КалендарныйДень),1,0)),CONCATENATE(\"День \",КалендарныйДень-DATE(YEAR(КалендарныйДень),1,0)))","v":"День 155"},{"$f":"IF(WEEKDAY(КалендарныйДень)=ЗначениеНачалаНедели,CONCATENATE(\"Неделя \",WEEKNUM(КалендарныйДень),\"/День \",КалендарныйДень-DATE(YEAR(КалендарныйДень),1,0)),CONCATENATE(\"День \",КалендарныйДень-DATE(YEAR(КалендарныйДень),1,0)))","v":"День 156"},{"$f":"IF(WEEKDAY(КалендарныйДень)=ЗначениеНачалаНедели,CONCATENATE(\"Неделя \",WEEKNUM(КалендарныйДень),\"/День \",КалендарныйДень-DATE(YEAR(КалендарныйДень),1,0)),CONCATENATE(\"День \",КалендарныйДень-DATE(YEAR(КалендарныйДень),1,0)))","v":"День 157"},{"$f":"IF(WEEKDAY(КалендарныйДень)=ЗначениеНачалаНедели,CONCATENATE(\"Неделя \",WEEKNUM(КалендарныйДень),\"/День \",КалендарныйДень-DATE(YEAR(КалендарныйДень),1,0)),CONCATENATE(\"День \",КалендарныйДень-DATE(YEAR(КалендарныйДень),1,0)))","v":"День 158"},{"$f":"IF(WEEKDAY(КалендарныйДень)=ЗначениеНачалаНедели,CONCATENATE(\"Неделя \",WEEKNUM(КалендарныйДень),\"/День \",КалендарныйДень-DATE(YEAR(КалендарныйДень),1,0)),CONCATENATE(\"День \",КалендарныйДень-DATE(YEAR(КалендарныйДень),1,0)))","v":"День 159"},{"$f":"IF(WEEKDAY(КалендарныйДень)=ЗначениеНачалаНедели,CONCATENATE(\"Неделя \",WEEKNUM(КалендарныйДень),\"/День \",КалендарныйДень-DATE(YEAR(КалендарныйДень),1,0)),CONCATENATE(\"День \",КалендарныйДень-DATE(YEAR(КалендарныйДень),1,0)))","v":"День 160"}]
[]
[null,null,{"$f":"ДниИНедели+DATE(ГодКалендаря,6,1)-WEEKDAY(DATE(ГодКалендаря,6,1),(НачалоНедели=\"ПН\")+1)+15","v":"2018-06-10"},"2018-06-11","2018-06-12","2018-06-13","2018-06-14","2018-06-15","2018-06-16"]
[null,null,{"$f":"IF(WEEKDAY(КалендарныйДень)=ЗначениеНачалаНедели,CONCATENATE(\"Неделя \",WEEKNUM(КалендарныйДень),\"/День \",КалендарныйДень-DATE(YEAR(КалендарныйДень),1,0)),CONCATENATE(\"День \",КалендарныйДень-DATE(YEAR(КалендарныйДень),1,0)))","v":"Неделя 24/День 161"},{"$f":"IF(WEEKDAY(КалендарныйДень)=ЗначениеНачалаНедели,CONCATENATE(\"Неделя \",WEEKNUM(КалендарныйДень),\"/День \",КалендарныйДень-DATE(YEAR(КалендарныйДень),1,0)),CONCATENATE(\"День \",КалендарныйДень-DATE(YEAR(КалендарныйДень),1,0)))","v":"День 162"},{"$f":"IF(WEEKDAY(КалендарныйДень)=ЗначениеНачалаНедели,CONCATENATE(\"Неделя \",WEEKNUM(КалендарныйДень),\"/День \",КалендарныйДень-DATE(YEAR(КалендарныйДень),1,0)),CONCATENATE(\"День \",КалендарныйДень-DATE(YEAR(КалендарныйДень),1,0)))","v":"День 163"},{"$f":"IF(WEEKDAY(КалендарныйДень)=ЗначениеНачалаНедели,CONCATENATE(\"Неделя \",WEEKNUM(КалендарныйДень),\"/День \",КалендарныйДень-DATE(YEAR(КалендарныйДень),1,0)),CONCATENATE(\"День \",КалендарныйДень-DATE(YEAR(КалендарныйДень),1,0)))","v":"День 164"},{"$f":"IF(WEEKDAY(КалендарныйДень)=ЗначениеНачалаНедели,CONCATENATE(\"Неделя \",WEEKNUM(КалендарныйДень),\"/День \",КалендарныйДень-DATE(YEAR(КалендарныйДень),1,0)),CONCATENATE(\"День \",КалендарныйДень-DATE(YEAR(КалендарныйДень),1,0)))","v":"День 165"},{"$f":"IF(WEEKDAY(КалендарныйДень)=ЗначениеНачалаНедели,CONCATENATE(\"Неделя \",WEEKNUM(КалендарныйДень),\"/День \",КалендарныйДень-DATE(YEAR(КалендарныйДень),1,0)),CONCATENATE(\"День \",КалендарныйДень-DATE(YEAR(КалендарныйДень),1,0)))","v":"День 166"},{"$f":"IF(WEEKDAY(КалендарныйДень)=ЗначениеНачалаНедели,CONCATENATE(\"Неделя \",WEEKNUM(КалендарныйДень),\"/День \",КалендарныйДень-DATE(YEAR(КалендарныйДень),1,0)),CONCATENATE(\"День \",КалендарныйДень-DATE(YEAR(КалендарныйДень),1,0)))","v":"День 167"}]
[]
[null,null,{"$f":"ДниИНедели+DATE(ГодКалендаря,6,1)-WEEKDAY(DATE(ГодКалендаря,6,1),(НачалоНедели=\"ПН\")+1)+22","v":"2018-06-17"},"2018-06-18","2018-06-19","2018-06-20","2018-06-21","2018-06-22","2018-06-23"]
[null,null,{"$f":"IF(WEEKDAY(КалендарныйДень)=ЗначениеНачалаНедели,CONCATENATE(\"Неделя \",WEEKNUM(КалендарныйДень),\"/День \",КалендарныйДень-DATE(YEAR(КалендарныйДень),1,0)),CONCATENATE(\"День \",КалендарныйДень-DATE(YEAR(КалендарныйДень),1,0)))","v":"Неделя 25/День 168"},{"$f":"IF(WEEKDAY(КалендарныйДень)=ЗначениеНачалаНедели,CONCATENATE(\"Неделя \",WEEKNUM(КалендарныйДень),\"/День \",КалендарныйДень-DATE(YEAR(КалендарныйДень),1,0)),CONCATENATE(\"День \",КалендарныйДень-DATE(YEAR(КалендарныйДень),1,0)))","v":"День 169"},{"$f":"IF(WEEKDAY(КалендарныйДень)=ЗначениеНачалаНедели,CONCATENATE(\"Неделя \",WEEKNUM(КалендарныйДень),\"/День \",КалендарныйДень-DATE(YEAR(КалендарныйДень),1,0)),CONCATENATE(\"День \",КалендарныйДень-DATE(YEAR(КалендарныйДень),1,0)))","v":"День 170"},{"$f":"IF(WEEKDAY(КалендарныйДень)=ЗначениеНачалаНедели,CONCATENATE(\"Неделя \",WEEKNUM(КалендарныйДень),\"/День \",КалендарныйДень-DATE(YEAR(КалендарныйДень),1,0)),CONCATENATE(\"День \",КалендарныйДень-DATE(YEAR(КалендарныйДень),1,0)))","v":"День 171"},{"$f":"IF(WEEKDAY(КалендарныйДень)=ЗначениеНачалаНедели,CONCATENATE(\"Неделя \",WEEKNUM(КалендарныйДень),\"/День \",КалендарныйДень-DATE(YEAR(КалендарныйДень),1,0)),CONCATENATE(\"День \",КалендарныйДень-DATE(YEAR(КалендарныйДень),1,0)))","v":"День 172"},{"$f":"IF(WEEKDAY(КалендарныйДень)=ЗначениеНачалаНедели,CONCATENATE(\"Неделя \",WEEKNUM(КалендарныйДень),\"/День \",КалендарныйДень-DATE(YEAR(КалендарныйДень),1,0)),CONCATENATE(\"День \",КалендарныйДень-DATE(YEAR(КалендарныйДень),1,0)))","v":"День 173"},{"$f":"IF(WEEKDAY(КалендарныйДень)=ЗначениеНачалаНедели,CONCATENATE(\"Неделя \",WEEKNUM(КалендарныйДень),\"/День \",КалендарныйДень-DATE(YEAR(КалендарныйДень),1,0)),CONCATENATE(\"День \",КалендарныйДень-DATE(YEAR(КалендарныйДень),1,0)))","v":"День 174"}]
[]
[null,null,{"$f":"ДниИНедели+DATE(ГодКалендаря,6,1)-WEEKDAY(DATE(ГодКалендаря,6,1),(НачалоНедели=\"ПН\")+1)+29","v":"2018-06-24"},"2018-06-25","2018-06-26","2018-06-27","2018-06-28","2018-06-29","2018-06-30"]
[null,null,{"$f":"IF(WEEKDAY(КалендарныйДень)=ЗначениеНачалаНедели,CONCATENATE(\"Неделя \",WEEKNUM(КалендарныйДень),\"/День \",КалендарныйДень-DATE(YEAR(КалендарныйДень),1,0)),CONCATENATE(\"День \",КалендарныйДень-DATE(YEAR(КалендарныйДень),1,0)))","v":"Неделя 26/День 175"},{"$f":"IF(WEEKDAY(КалендарныйДень)=ЗначениеНачалаНедели,CONCATENATE(\"Неделя \",WEEKNUM(КалендарныйДень),\"/День \",КалендарныйДень-DATE(YEAR(КалендарныйДень),1,0)),CONCATENATE(\"День \",КалендарныйДень-DATE(YEAR(КалендарныйДень),1,0)))","v":"День 176"},{"$f":"IF(WEEKDAY(КалендарныйДень)=ЗначениеНачалаНедели,CONCATENATE(\"Неделя \",WEEKNUM(КалендарныйДень),\"/День \",КалендарныйДень-DATE(YEAR(КалендарныйДень),1,0)),CONCATENATE(\"День \",КалендарныйДень-DATE(YEAR(КалендарныйДень),1,0)))","v":"День 177"},{"$f":"IF(WEEKDAY(КалендарныйДень)=ЗначениеНачалаНедели,CONCATENATE(\"Неделя \",WEEKNUM(КалендарныйДень),\"/День \",КалендарныйДень-DATE(YEAR(КалендарныйДень),1,0)),CONCATENATE(\"День \",КалендарныйДень-DATE(YEAR(КалендарныйДень),1,0)))","v":"День 178"},{"$f":"IF(WEEKDAY(КалендарныйДень)=ЗначениеНачалаНедели,CONCATENATE(\"Неделя \",WEEKNUM(КалендарныйДень),\"/День \",КалендарныйДень-DATE(YEAR(КалендарныйДень),1,0)),CONCATENATE(\"День \",КалендарныйДень-DATE(YEAR(КалендарныйДень),1,0)))","v":"День 179"},{"$f":"IF(WEEKDAY(КалендарныйДень)=ЗначениеНачалаНедели,CONCATENATE(\"Неделя \",WEEKNUM(КалендарныйДень),\"/День \",КалендарныйДень-DATE(YEAR(КалендарныйДень),1,0)),CONCATENATE(\"День \",КалендарныйДень-DATE(YEAR(КалендарныйДень),1,0)))","v":"День 180"},{"$f":"IF(WEEKDAY(КалендарныйДень)=ЗначениеНачалаНедели,CONCATENATE(\"Неделя \",WEEKNUM(КалендарныйДень),\"/День \",КалендарныйДень-DATE(YEAR(КалендарныйДень),1,0)),CONCATENATE(\"День \",КалендарныйДень-DATE(YEAR(КалендарныйДень),1,0)))","v":"День 181"}]
[{"$nulls":4},"ЗАМЕТКИ"]
[]
[null,null,{"$f":"ДниИНедели+DATE(ГодКалендаря,6,1)-WEEKDAY(DATE(ГодКалендаря,6,1),(НачалоНедели=\"ПН\")+1)+36","v":"2018-07-01"},"2018-07-02"]
[null,null,{"$f":"IF(WEEKDAY(КалендарныйДень)=ЗначениеНачалаНедели,CONCATENATE(\"Неделя \",WEEKNUM(КалендарныйДень),\"/День \",КалендарныйДень-DATE(YEAR(КалендарныйДень),1,0)),CONCATENATE(\"День \",КалендарныйДень-DATE(YEAR(КалендарныйДень),1,0)))","v":"Неделя 27/День 182"},{"$f":"IF(WEEKDAY(КалендарныйДень)=ЗначениеНачалаНедели,CONCATENATE(\"Неделя \",WEEKNUM(КалендарныйДень),\"/День \",КалендарныйДень-DATE(YEAR(КалендарныйДень),1,0)),CONCATENATE(\"День \",КалендарныйДень-DATE(YEAR(КалендарныйДень),1,0)))","v":"День 183"}]

{"sheet":"ИЮЛ","index":6,"n_rows":20,"n_cols":9,"rows_kept":20,"merged":[[16,2,17,2],[17,4,19,8]]}
[null,"ИЮЛ",{"$f":"UPPER(TEXT(НачалоНедели,\"ddd\"))","v":"ВС"},{"$f":"UPPER(TEXT(D3,\"ДДД\"))","v":"ПН"},"ВТ","СР","ЧТ","ПТ","СБ"]
[null,{"$f":"ГодКалендаря","v":2018}]
[null,null,{"$f":"ДниИНедели+DATE(ГодКалендаря,7,1)-WEEKDAY(DATE(ГодКалендаря,7,1),(НачалоНедели=\"ПН\")+1)+1","v":"2018-07-01"},"2018-07-02","2018-07-03","2018-07-04","2018-07-05","2018-07-06","2018-07-07"]
[null,null,{"$f":"IF(DAY(КалендарныйДень)=1,CONCATENATE(\"Неделя \",WEEKNUM(КалендарныйДень),\"/День \",КалендарныйДень-DATE(YEAR(КалендарныйДень),1,0)),CONCATENATE(\"День \",КалендарныйДень-DATE(YEAR(КалендарныйДень),1,0)))","v":"Неделя 27/День 182"},"День 183","День 184","День 185","День 186","День 187","День 188"]
[]
[null,null,{"$f":"ДниИНедели+DATE(ГодКалендаря,7,1)-WEEKDAY(DATE(ГодКалендаря,7,1),(НачалоНедели=\"ПН\")+1)+8","v":"2018-07-08"},"2018-07-09","2018-07-10","2018-07-11","2018-07-12","2018-07-13","2018-07-14"]
[null,null,{"$f":"IF(WEEKDAY(КалендарныйДень)=ЗначениеНачалаНедели,CONCATENATE(\"Неделя \",WEEKNUM(КалендарныйДень),\"/День \",КалендарныйДень-DATE(YEAR(КалендарныйДень),1,0)),CONCATENATE(\"День \",КалендарныйДень-DATE(YEAR(КалендарныйДень),1,0)))","v":"Неделя 28/День 189"},{"$f":"IF(WEEKDAY(КалендарныйДень)=ЗначениеНачалаНедели,CONCATENATE(\"Неделя \",WEEKNUM(КалендарныйДень),\"/День \",КалендарныйДень-DATE(YEAR(КалендарныйДень),1,0)),CONCATENATE(\"День \",КалендарныйДень-DATE(YEAR(КалендарныйДень),1,0)))","v":"День 190"},{"$f":"IF(WEEKDAY(КалендарныйДень)=ЗначениеНачалаНедели,CONCATENATE(\"Неделя \",WEEKNUM(КалендарныйДень),\"/День \",КалендарныйДень-DATE(YEAR(КалендарныйДень),1,0)),CONCATENATE(\"День \",КалендарныйДень-DATE(YEAR(КалендарныйДень),1,0)))","v":"День 191"},{"$f":"IF(WEEKDAY(КалендарныйДень)=ЗначениеНачалаНедели,CONCATENATE(\"Неделя \",WEEKNUM(КалендарныйДень),\"/День \",КалендарныйДень-DATE(YEAR(КалендарныйДень),1,0)),CONCATENATE(\"День \",КалендарныйДень-DATE(YEAR(КалендарныйДень),1,0)))","v":"День 192"},{"$f":"IF(WEEKDAY(КалендарныйДень)=ЗначениеНачалаНедели,CONCATENATE(\"Неделя \",WEEKNUM(КалендарныйДень),\"/День \",КалендарныйДень-DATE(YEAR(КалендарныйДень),1,0)),CONCATENATE(\"День \",КалендарныйДень-DATE(YEAR(КалендарныйДень),1,0)))","v":"День 193"},{"$f":"IF(WEEKDAY(КалендарныйДень)=ЗначениеНачалаНедели,CONCATENATE(\"Неделя \",WEEKNUM(КалендарныйДень),\"/День \",КалендарныйДень-DATE(YEAR(КалендарныйДень),1,0)),CONCATENATE(\"День \",КалендарныйДень-DATE(YEAR(КалендарныйДень),1,0)))","v":"День 194"},{"$f":"IF(WEEKDAY(КалендарныйДень)=ЗначениеНачалаНедели,CONCATENATE(\"Неделя \",WEEKNUM(КалендарныйДень),\"/День \",КалендарныйДень-DATE(YEAR(КалендарныйДень),1,0)),CONCATENATE(\"День \",КалендарныйДень-DATE(YEAR(КалендарныйДень),1,0)))","v":"День 195"}]
[]
[null,null,{"$f":"ДниИНедели+DATE(ГодКалендаря,7,1)-WEEKDAY(DATE(ГодКалендаря,7,1),(НачалоНедели=\"ПН\")+1)+15","v":"2018-07-15"},"2018-07-16","2018-07-17","2018-07-18","2018-07-19","2018-07-20","2018-07-21"]
[null,null,{"$f":"IF(WEEKDAY(КалендарныйДень)=ЗначениеНачалаНедели,CONCATENATE(\"Неделя \",WEEKNUM(КалендарныйДень),\"/День \",КалендарныйДень-DATE(YEAR(КалендарныйДень),1,0)),CONCATENATE(\"День \",КалендарныйДень-DATE(YEAR(КалендарныйДень),1,0)))","v":"Неделя 29/День 196"},{"$f":"IF(WEEKDAY(КалендарныйДень)=ЗначениеНачалаНедели,CONCATENATE(\"Неделя \",WEEKNUM(КалендарныйДень),\"/День \",КалендарныйДень-DATE(YEAR(КалендарныйДень),1,0)),CONCATENATE(\"День \",КалендарныйДень-DATE(YEAR(КалендарныйДень),1,0)))","v":"День 197"},{"$f":"IF(WEEKDAY(КалендарныйДень)=ЗначениеНачалаНедели,CONCATENATE(\"Неделя \",WEEKNUM(КалендарныйДень),\"/День \",КалендарныйДень-DATE(YEAR(КалендарныйДень),1,0)),CONCATENATE(\"День \",КалендарныйДень-DATE(YEAR(КалендарныйДень),1,0)))","v":"День 198"},{"$f":"IF(WEEKDAY(КалендарныйДень)=ЗначениеНачалаНедели,CONCATENATE(\"Неделя \",WEEKNUM(КалендарныйДень),\"/День \",КалендарныйДень-DATE(YEAR(КалендарныйДень),1,0)),CONCATENATE(\"День \",КалендарныйДень-DATE(YEAR(КалендарныйДень),1,0)))","v":"День 199"},{"$f":"IF(WEEKDAY(КалендарныйДень)=ЗначениеНачалаНедели,CONCATENATE(\"Неделя \",WEEKNUM(КалендарныйДень),\"/День \",КалендарныйДень-DATE(YEAR(КалендарныйДень),1,0)),CONCATENATE(\"День \",КалендарныйДень-DATE(YEAR(КалендарныйДень),1,0)))","v":"День 200"},{"$f":"IF(WEEKDAY(КалендарныйДень)=ЗначениеНачалаНедели,CONCATENATE(\"Неделя \",WEEKNUM(КалендарныйДень),\"/День \",КалендарныйДень-DATE(YEAR(КалендарныйДень),1,0)),CONCATENATE(\"День \",КалендарныйДень-DATE(YEAR(КалендарныйДень),1,0)))","v":"День 201"},{"$f":"IF(WEEKDAY(КалендарныйДень)=ЗначениеНачалаНедели,CONCATENATE(\"Неделя \",WEEKNUM(КалендарныйДень),\"/День \",КалендарныйДень-DATE(YEAR(КалендарныйДень),1,0)),CONCATENATE(\"День \",КалендарныйДень-DATE(YEAR(КалендарныйДень),1,0)))","v":"День 202"}]
[]
[null,null,{"$f":"ДниИНедели+DATE(ГодКалендаря,7,1)-WEEKDAY(DATE(ГодКалендаря,7,1),(НачалоНедели=\"ПН\")+1)+22","v":"2018-07-22"},"2018-07-23","2018-07-24","2018-07-25","2018-07-26","2018-07-27","2018-07-28"]
[null,null,{"$f":"IF(WEEKDAY(КалендарныйДень)=ЗначениеНачалаНедели,CONCATENATE(\"Неделя \",WEEKNUM(КалендарныйДень),\"/День \",КалендарныйДень-DATE(YEAR(КалендарныйДень),1,0)),CONCATENATE(\"День \",КалендарныйДень-DATE(YEAR(КалендарныйДень),1,0)))","v":"Неделя 30/День 203"},{"$f":"IF(WEEKDAY(КалендарныйДень)=ЗначениеНачалаНедели,CONCATENATE(\"Неделя \",WEEKNUM(КалендарныйДень),\"/День \",КалендарныйДень-DATE(YEAR(КалендарныйДень),1,0)),CONCATENATE(\"День \",КалендарныйДень-DATE(YEAR(КалендарныйДень),1,0)))","v":"День 204"},{"$f":"IF(WEEKDAY(КалендарныйДень)=ЗначениеНачалаНедели,CONCATENATE(\"Неделя \",WEEKNUM(КалендарныйДень),\"/День \",КалендарныйДень-DATE(YEAR(КалендарныйДень),1,0)),CONCATENATE(\"День \",КалендарныйДень-DATE(YEAR(КалендарныйДень),1,0)))","v":"День 205"},{"$f":"IF(WEEKDAY(КалендарныйДень)=ЗначениеНачалаНедели,CONCATENATE(\"Неделя \",WEEKNUM(КалендарныйДень),\"/День \",КалендарныйДень-DATE(YEAR(КалендарныйДень),1,0)),CONCATENATE(\"День \",КалендарныйДень-DATE(YEAR(КалендарныйДень),1,0)))","v":"День 206"},{"$f":"IF(WEEKDAY(КалендарныйДень)=ЗначениеНачалаНедели,CONCATENATE(\"Неделя \",WEEKNUM(КалендарныйДень),\"/День \",КалендарныйДень-DATE(YEAR(КалендарныйДень),1,0)),CONCATENATE(\"День \",КалендарныйДень-DATE(YEAR(КалендарныйДень),1,0)))","v":"День 207"},{"$f":"IF(WEEKDAY(КалендарныйДень)=ЗначениеНачалаНедели,CONCATENATE(\"Неделя \",WEEKNUM(КалендарныйДень),\"/День \",КалендарныйДень-DATE(YEAR(КалендарныйДень),1,0)),CONCATENATE(\"День \",КалендарныйДень-DATE(YEAR(КалендарныйДень),1,0)))","v":"День 208"},{"$f":"IF(WEEKDAY(КалендарныйДень)=ЗначениеНачалаНедели,CONCATENATE(\"Неделя \",WEEKNUM(КалендарныйДень),\"/День \",КалендарныйДень-DATE(YEAR(КалендарныйДень),1,0)),CONCATENATE(\"День \",КалендарныйДень-DATE(YEAR(КалендарныйДень),1,0)))","v":"День 209"}]
[]
[null,null,{"$f":"ДниИНедели+DATE(ГодКалендаря,7,1)-WEEKDAY(DATE(ГодКалендаря,7,1),(НачалоНедели=\"ПН\")+1)+29","v":"2018-07-29"},"2018-07-30","2018-07-31","2018-08-01","2018-08-02","2018-08-03","2018-08-04"]
[null,null,{"$f":"IF(WEEKDAY(КалендарныйДень)=ЗначениеНачалаНедели,CONCATENATE(\"Неделя \",WEEKNUM(КалендарныйДень),\"/День \",КалендарныйДень-DATE(YEAR(КалендарныйДень),1,0)),CONCATENATE(\"День \",КалендарныйДень-DATE(YEAR(КалендарныйДень),1,0)))","v":"Неделя 31/День 210"},{"$f":"IF(WEEKDAY(КалендарныйДень)=ЗначениеНачалаНедели,CONCATENATE(\"Неделя \",WEEKNUM(КалендарныйДень),\"/День \",КалендарныйДень-DATE(YEAR(КалендарныйДень),1,0)),CONCATENATE(\"День \",КалендарныйДень-DATE(YEAR(КалендарныйДень),1,0)))","v":"День 211"},{"$f":"IF(WEEKDAY(КалендарныйДень)=ЗначениеНачалаНедели,CONCATENATE(\"Неделя \",WEEKNUM(КалендарныйДень),\"/День \",КалендарныйДень-DATE(YEAR(КалендарныйДень),1,0)),CONCATENATE(\"День \",КалендарныйДень-DATE(YEAR(КалендарныйДень),1,0)))","v":"День 212"},{"$f":"IF(WEEKDAY(КалендарныйДень)=ЗначениеНачалаНедели,CONCATENATE(\"Неделя \",WEEKNUM(КалендарныйДень),\"/День \",КалендарныйДень-DATE(YEAR(КалендарныйДень),1,0)),CONCATENATE(\"День \",КалендарныйДень-DATE(YEAR(КалендарныйДень),1,0)))","v":"День 213"},{"$f":"IF(WEEKDAY(КалендарныйДень)=ЗначениеНачалаНедели,CONCATENATE(\"Неделя \",WEEKNUM(КалендарныйДень),\"/День \",КалендарныйДень-DATE(YEAR(КалендарныйДень),1,0)),CONCATENATE(\"День \",КалендарныйДень-DATE(YEAR(КалендарныйДень),1,0)))","v":"День 214"},{"$f":"IF(WEEKDAY(КалендарныйДень)=ЗначениеНачалаНедели,CONCATENATE(\"Неделя \",WEEKNUM(КалендарныйДень),\"/День \",КалендарныйДень-DATE(YEAR(КалендарныйДень),1,0)),CONCATENATE(\"День \",КалендарныйДень-DATE(YEAR(КалендарныйДень),1,0)))","v":"День 215"},{"$f":"IF(WEEKDAY(КалендарныйДень)=ЗначениеНачалаНедели,CONCATENATE(\"Неделя \",WEEKNUM(КалендарныйДень),\"/День \",КалендарныйДень-DATE(YEAR(КалендарныйДень),1,0)),CONCATENATE(\"День \",КалендарныйДень-DATE(YEAR(КалендарныйДень),1,0)))","v":"День 216"}]
[{"$nulls":4},"ЗАМЕТКИ"]
[]
[null,null,{"$f":"ДниИНедели+DATE(ГодКалендаря,7,1)-WEEKDAY(DATE(ГодКалендаря,7,1),(НачалоНедели=\"ПН\")+1)+36","v":"2018-08-05"},"2018-08-06"]
[null,null,{"$f":"IF(WEEKDAY(КалендарныйДень)=ЗначениеНачалаНедели,CONCATENATE(\"Неделя \",WEEKNUM(КалендарныйДень),\"/День \",КалендарныйДень-DATE(YEAR(КалендарныйДень),1,0)),CONCATENATE(\"День \",КалендарныйДень-DATE(YEAR(КалендарныйДень),1,0)))","v":"Неделя 32/День 217"},{"$f":"IF(WEEKDAY(КалендарныйДень)=ЗначениеНачалаНедели,CONCATENATE(\"Неделя \",WEEKNUM(КалендарныйДень),\"/День \",КалендарныйДень-DATE(YEAR(КалендарныйДень),1,0)),CONCATENATE(\"День \",КалендарныйДень-DATE(YEAR(КалендарныйДень),1,0)))","v":"День 218"}]

{"sheet":"АВГ","index":7,"n_rows":20,"n_cols":9,"rows_kept":20,"merged":[[16,2,17,2],[17,4,19,8]]}
[null,"АВГ",{"$f":"UPPER(TEXT(НачалоНедели,\"ddd\"))","v":"ВС"},{"$f":"UPPER(TEXT(D3,\"ДДД\"))","v":"ПН"},"ВТ","СР","ЧТ","ПТ","СБ"]
[null,{"$f":"ГодКалендаря","v":2018}]
[null,null,{"$f":"ДниИНедели+DATE(ГодКалендаря,8,1)-WEEKDAY(DATE(ГодКалендаря,8,1),(НачалоНедели=\"ПН\")+1)+1","v":"2018-07-29"},"2018-07-30","2018-07-31","2018-08-01","2018-08-02","2018-08-03","2018-08-04"]
[null,null,{"$f":"IF(DAY(КалендарныйДень)=1,CONCATENATE(\"Неделя \",WEEKNUM(КалендарныйДень),\"/День \",КалендарныйДень-DATE(YEAR(КалендарныйДень),1,0)),CONCATENATE(\"День \",КалендарныйДень-DATE(YEAR(КалендарныйДень),1,0)))","v":"День 210"},"День 211","День 212","Неделя 31/День 213","День 214","День 215","День 216"]
[]
[null,null,{"$f":"ДниИНедели+DATE(ГодКалендаря,8,1)-WEEKDAY(DATE(ГодКалендаря,8,1),(НачалоНедели=\"ПН\")+1)+8","v":"2018-08-05"},"2018-08-06","2018-08-07","2018-08-08","2018-08-09","2018-08-10","2018-08-11"]
[null,null,{"$f":"IF(WEEKDAY(КалендарныйДень)=ЗначениеНачалаНедели,CONCATENATE(\"Неделя \",WEEKNUM(КалендарныйДень),\"/День \",КалендарныйДень-DATE(YEAR(КалендарныйДень),1,0)),CONCATENATE(\"День \",КалендарныйДень-DATE(YEAR(КалендарныйДень),1,0)))","v":"Неделя 32/День 217"},{"$f":"IF(WEEKDAY(КалендарныйДень)=ЗначениеНачалаНедели,CONCATENATE(\"Неделя \",WEEKNUM(КалендарныйДень),\"/День \",КалендарныйДень-DATE(YEAR(КалендарныйДень),1,0)),CONCATENATE(\"День \",КалендарныйДень-DATE(YEAR(КалендарныйДень),1,0)))","v":"День 218"},{"$f":"IF(WEEKDAY(КалендарныйДень)=ЗначениеНачалаНедели,CONCATENATE(\"Неделя \",WEEKNUM(КалендарныйДень),\"/День \",КалендарныйДень-DATE(YEAR(КалендарныйДень),1,0)),CONCATENATE(\"День \",КалендарныйДень-DATE(YEAR(КалендарныйДень),1,0)))","v":"День 219"},{"$f":"IF(WEEKDAY(КалендарныйДень)=ЗначениеНачалаНедели,CONCATENATE(\"Неделя \",WEEKNUM(КалендарныйДень),\"/День \",КалендарныйДень-DATE(YEAR(КалендарныйДень),1,0)),CONCATENATE(\"День \",КалендарныйДень-DATE(YEAR(КалендарныйДень),1,0)))","v":"День 220"},{"$f":"IF(WEEKDAY(КалендарныйДень)=ЗначениеНачалаНедели,CONCATENATE(\"Неделя \",WEEKNUM(КалендарныйДень),\"/День \",КалендарныйДень-DATE(YEAR(КалендарныйДень),1,0)),CONCATENATE(\"День \",КалендарныйДень-DATE(YEAR(КалендарныйДень),1,0)))","v":"День 221"},{"$f":"IF(WEEKDAY(КалендарныйДень)=ЗначениеНачалаНедели,CONCATENATE(\"Неделя \",WEEKNUM(КалендарныйДень),\"/День \",КалендарныйДень-DATE(YEAR(КалендарныйДень),1,0)),CONCATENATE(\"День \",КалендарныйДень-DATE(YEAR(КалендарныйДень),1,0)))","v":"День 222"},{"$f":"IF(WEEKDAY(КалендарныйДень)=ЗначениеНачалаНедели,CONCATENATE(\"Неделя \",WEEKNUM(КалендарныйДень),\"/День \",КалендарныйДень-DATE(YEAR(КалендарныйДень),1,0)),CONCATENATE(\"День \",КалендарныйДень-DATE(YEAR(КалендарныйДень),1,0)))","v":"День 223"}]
[]
[null,null,{"$f":"ДниИНедели+DATE(ГодКалендаря,8,1)-WEEKDAY(DATE(ГодКалендаря,8,1),(НачалоНедели=\"ПН\")+1)+15","v":"2018-08-12"},"2018-08-13","2018-08-14","2018-08-15","2018-08-16","2018-08-17","2018-08-18"]
[null,null,{"$f":"IF(WEEKDAY(КалендарныйДень)=ЗначениеНачалаНедели,CONCATENATE(\"Неделя \",WEEKNUM(КалендарныйДень),\"/День \",КалендарныйДень-DATE(YEAR(КалендарныйДень),1,0)),CONCATENATE(\"День \",КалендарныйДень-DATE(YEAR(КалендарныйДень),1,0)))","v":"Неделя 33/День 224"},{"$f":"IF(WEEKDAY(КалендарныйДень)=ЗначениеНачалаНедели,CONCATENATE(\"Неделя \",WEEKNUM(КалендарныйДень),\"/День \",КалендарныйДень-DATE(YEAR(КалендарныйДень),1,0)),CONCATENATE(\"День \",КалендарныйДень-DATE(YEAR(КалендарныйДень),1,0)))","v":"День 225"},{"$f":"IF(WEEKDAY(КалендарныйДень)=ЗначениеНачалаНедели,CONCATENATE(\"Неделя \",WEEKNUM(КалендарныйДень),\"/День \",КалендарныйДень-DATE(YEAR(КалендарныйДень),1,0)),CONCATENATE(\"День \",КалендарныйДень-DATE(YEAR(КалендарныйДень),1,0)))","v":"День 226"},{"$f":"IF(WEEKDAY(КалендарныйДень)=ЗначениеНачалаНедели,CONCATENATE(\"Неделя \",WEEKNUM(КалендарныйДень),\"/День \",КалендарныйДень-DATE(YEAR(КалендарныйДень),1,0)),CONCATENATE(\"День \",КалендарныйДень-DATE(YEAR(КалендарныйДень),1,0)))","v":"День 227"},{"$f":"IF(WEEKDAY(КалендарныйДень)=ЗначениеНачалаНедели,CONCATENATE(\"Неделя \",WEEKNUM(КалендарныйДень),\"/День \",КалендарныйДень-DATE(YEAR(КалендарныйДень),1,0)),CONCATENATE(\"День \",КалендарныйДень-DATE(YEAR(КалендарныйДень),1,0)))","v":"День 228"},{"$f":"IF(WEEKDAY(КалендарныйДень)=ЗначениеНачалаНедели,CONCATENATE(\"Неделя \",WEEKNUM(КалендарныйДень),\"/День \",КалендарныйДень-DATE(YEAR(КалендарныйДень),1,0)),CONCATENATE(\"День \",КалендарныйДень-DATE(YEAR(КалендарныйДень),1,0)))","v":"День 229"},{"$f":"IF(WEEKDAY(КалендарныйДень)=ЗначениеНачалаНедели,CONCATENATE(\"Неделя \",WEEKNUM(КалендарныйДень),\"/День \",КалендарныйДень-DATE(YEAR(КалендарныйДень),1,0)),CONCATENATE(\"День \",КалендарныйДень-DATE(YEAR(КалендарныйДень),1,0)))","v":"День 230"}]
[]
[null,null,{"$f":"ДниИНедели+DATE(ГодКалендаря,8,1)-WEEKDAY(DATE(ГодКалендаря,8,1),(НачалоНедели=\"ПН\")+1)+22","v":"2018-08-19"},"2018-08-20","2018-08-21","2018-08-22","2018-08-23","2018-08-24","2018-08-25"]
[null,null,{"$f":"IF(WEEKDAY(КалендарныйДень)=ЗначениеНачалаНедели,CONCATENATE(\"Неделя \",WEEKNUM(КалендарныйДень),\"/День \",КалендарныйДень-DATE(YEAR(КалендарныйДень),1,0)),CONCATENATE(\"День \",КалендарныйДень-DATE(YEAR(КалендарныйДень),1,0)))","v":"Неделя 34/День 231"},{"$f":"IF(WEEKDAY(КалендарныйДень)=ЗначениеНачалаНедели,CONCATENATE(\"Неделя \",WEEKNUM(КалендарныйДень),\"/День \",КалендарныйДень-DATE(YEAR(КалендарныйДень),1,0)),CONCATENATE(\"День \",КалендарныйДень-DATE(YEAR(КалендарныйДень),1,0)))","v":"День 232"},{"$f":"IF(WEEKDAY(КалендарныйДень)=ЗначениеНачалаНедели,CONCATENATE(\"Неделя \",WEEKNUM(КалендарныйДень),\"/День \",КалендарныйДень-DATE(YEAR(КалендарныйДень),1,0)),CONCATENATE(\"День \",КалендарныйДень-DATE(YEAR(КалендарныйДень),1,0)))","v":"День 233"},{"$f":"IF(WEEKDAY(КалендарныйДень)=ЗначениеНачалаНедели,CONCATENATE(\"Неделя \",WEEKNUM(КалендарныйДень),\"/День \",КалендарныйДень-DATE(YEAR(КалендарныйДень),1,0)),CONCATENATE(\"День \",КалендарныйДень-DATE(YEAR(КалендарныйДень),1,0)))","v":"День 234"},{"$f":"IF(WEEKDAY(КалендарныйДень)=ЗначениеНачалаНедели,CONCATENATE(\"Неделя \",WEEKNUM(КалендарныйДень),\"/День \",КалендарныйДень-DATE(YEAR(КалендарныйДень),1,0)),CONCATENATE(\"День \",КалендарныйДень-DATE(YEAR(КалендарныйДень),1,0)))","v":"День 235"},{"$f":"IF(WEEKDAY(КалендарныйДень)=ЗначениеНачалаНедели,CONCATENATE(\"Неделя \",WEEKNUM(КалендарныйДень),\"/День \",КалендарныйДень-DATE(YEAR(КалендарныйДень),1,0)),CONCATENATE(\"День \",КалендарныйДень-DATE(YEAR(КалендарныйДень),1,0)))","v":"День 236"},{"$f":"IF(WEEKDAY(КалендарныйДень)=ЗначениеНачалаНедели,CONCATENATE(\"Неделя \",WEEKNUM(КалендарныйДень),\"/День \",КалендарныйДень-DATE(YEAR(КалендарныйДень),1,0)),CONCATENATE(\"День \",КалендарныйДень-DATE(YEAR(КалендарныйДень),1,0)))","v":"День 237"}]
[]
[null,null,{"$f":"ДниИНедели+DATE(ГодКалендаря,8,1)-WEEKDAY(DATE(ГодКалендаря,8,1),(НачалоНедели=\"ПН\")+1)+29","v":"2018-08-26"},"2018-08-27","2018-08-28","2018-08-29","2018-08-30","2018-08-31","2018-09-01"]
[null,null,{"$f":"IF(WEEKDAY(КалендарныйДень)=ЗначениеНачалаНедели,CONCATENATE(\"Неделя \",WEEKNUM(КалендарныйДень),\"/День \",КалендарныйДень-DATE(YEAR(КалендарныйДень),1,0)),CONCATENATE(\"День \",КалендарныйДень-DATE(YEAR(КалендарныйДень),1,0)))","v":"Неделя 35/День 238"},{"$f":"IF(WEEKDAY(КалендарныйДень)=ЗначениеНачалаНедели,CONCATENATE(\"Неделя \",WEEKNUM(КалендарныйДень),\"/День \",КалендарныйДень-DATE(YEAR(КалендарныйДень),1,0)),CONCATENATE(\"День \",КалендарныйДень-DATE(YEAR(КалендарныйДень),1,0)))","v":"День 239"},{"$f":"IF(WEEKDAY(КалендарныйДень)=ЗначениеНачалаНедели,CONCATENATE(\"Неделя \",WEEKNUM(КалендарныйДень),\"/День \",КалендарныйДень-DATE(YEAR(КалендарныйДень),1,0)),CONCATENATE(\"День \",КалендарныйДень-DATE(YEAR(КалендарныйДень),1,0)))","v":"День 240"},{"$f":"IF(WEEKDAY(КалендарныйДень)=ЗначениеНачалаНедели,CONCATENATE(\"Неделя \",WEEKNUM(КалендарныйДень),\"/День \",КалендарныйДень-DATE(YEAR(КалендарныйДень),1,0)),CONCATENATE(\"День \",КалендарныйДень-DATE(YEAR(КалендарныйДень),1,0)))","v":"День 241"},{"$f":"IF(WEEKDAY(КалендарныйДень)=ЗначениеНачалаНедели,CONCATENATE(\"Неделя \",WEEKNUM(КалендарныйДень),\"/День \",КалендарныйДень-DATE(YEAR(КалендарныйДень),1,0)),CONCATENATE(\"День \",КалендарныйДень-DATE(YEAR(КалендарныйДень),1,0)))","v":"День 242"},{"$f":"IF(WEEKDAY(КалендарныйДень)=ЗначениеНачалаНедели,CONCATENATE(\"Неделя \",WEEKNUM(КалендарныйДень),\"/День \",КалендарныйДень-DATE(YEAR(КалендарныйДень),1,0)),CONCATENATE(\"День \",КалендарныйДень-DATE(YEAR(КалендарныйДень),1,0)))","v":"День 243"},{"$f":"IF(WEEKDAY(КалендарныйДень)=ЗначениеНачалаНедели,CONCATENATE(\"Неделя \",WEEKNUM(КалендарныйДень),\"/День \",КалендарныйДень-DATE(YEAR(КалендарныйДень),1,0)),CONCATENATE(\"День \",КалендарныйДень-DATE(YEAR(КалендарныйДень),1,0)))","v":"День 244"}]
[{"$nulls":4},"ЗАМЕТКИ"]
[]
[null,null,{"$f":"ДниИНедели+DATE(ГодКалендаря,8,1)-WEEKDAY(DATE(ГодКалендаря,8,1),(НачалоНедели=\"ПН\")+1)+36","v":"2018-09-02"},"2018-09-03"]
[null,null,{"$f":"IF(WEEKDAY(КалендарныйДень)=ЗначениеНачалаНедели,CONCATENATE(\"Неделя \",WEEKNUM(КалендарныйДень),\"/День \",КалендарныйДень-DATE(YEAR(КалендарныйДень),1,0)),CONCATENATE(\"День \",КалендарныйДень-DATE(YEAR(КалендарныйДень),1,0)))","v":"Неделя 36/День 245"},{"$f":"IF(WEEKDAY(КалендарныйДень)=ЗначениеНачалаНедели,CONCATENATE(\"Неделя \",WEEKNUM(КалендарныйДень),\"/День \",КалендарныйДень-DATE(YEAR(КалендарныйДень),1,0)),CONCATENATE(\"День \",КалендарныйДень-DATE(YEAR(КалендарныйДень),1,0)))","v":"День 246"}]

{"sheet":"СЕН","index":8,"n_rows":20,"n_cols":9,"rows_kept":20,"merged":[[16,2,17,2],[17,4,19,8]]}
[null,"СЕН",{"$f":"UPPER(TEXT(НачалоНедели,\"ddd\"))","v":"ВС"},{"$f":"UPPER(TEXT(D3,\"ДДД\"))","v":"ПН"},"ВТ","СР","ЧТ","ПТ","СБ"]
[null,{"$f":"ГодКалендаря","v":2018}]
[null,null,{"$f":"ДниИНедели+DATE(ГодКалендаря,9,1)-WEEKDAY(DATE(ГодКалендаря,9,1),(НачалоНедели=\"ПН\")+1)+1","v":"2018-08-26"},"2018-08-27","2018-08-28","2018-08-29","2018-08-30","2018-08-31","2018-09-01"]
[null,null,{"$f":"IF(DAY(КалендарныйДень)=1,CONCATENATE(\"Неделя \",WEEKNUM(КалендарныйДень),\"/День \",КалендарныйДень-DATE(YEAR(КалендарныйДень),1,0)),CONCATENATE(\"День \",КалендарныйДень-DATE(YEAR(КалендарныйДень),1,0)))","v":"День 238"},"День 239","День 240","День 241","День 242","День 243","Неделя 35/День 244"]
[]
[null,null,{"$f":"ДниИНедели+DATE(ГодКалендаря,9,1)-WEEKDAY(DATE(ГодКалендаря,9,1),(НачалоНедели=\"ПН\")+1)+8","v":"2018-09-02"},"2018-09-03","2018-09-04","2018-09-05","2018-09-06","2018-09-07","2018-09-08"]
[null,null,{"$f":"IF(WEEKDAY(КалендарныйДень)=ЗначениеНачалаНедели,CONCATENATE(\"Неделя \",WEEKNUM(КалендарныйДень),\"/День \",КалендарныйДень-DATE(YEAR(КалендарныйДень),1,0)),CONCATENATE(\"День \",КалендарныйДень-DATE(YEAR(КалендарныйДень),1,0)))","v":"Неделя 36/День 245"},{"$f":"IF(WEEKDAY(КалендарныйДень)=ЗначениеНачалаНедели,CONCATENATE(\"Неделя \",WEEKNUM(КалендарныйДень),\"/День \",КалендарныйДень-DATE(YEAR(КалендарныйДень),1,0)),CONCATENATE(\"День \",КалендарныйДень-DATE(YEAR(КалендарныйДень),1,0)))","v":"День 246"},{"$f":"IF(WEEKDAY(КалендарныйДень)=ЗначениеНачалаНедели,CONCATENATE(\"Неделя \",WEEKNUM(КалендарныйДень),\"/День \",КалендарныйДень-DATE(YEAR(КалендарныйДень),1,0)),CONCATENATE(\"День \",КалендарныйДень-DATE(YEAR(КалендарныйДень),1,0)))","v":"День 247"},{"$f":"IF(WEEKDAY(КалендарныйДень)=ЗначениеНачалаНедели,CONCATENATE(\"Неделя \",WEEKNUM(КалендарныйДень),\"/День \",КалендарныйДень-DATE(YEAR(КалендарныйДень),1,0)),CONCATENATE(\"День \",КалендарныйДень-DATE(YEAR(КалендарныйДень),1,0)))","v":"День 248"},{"$f":"IF(WEEKDAY(КалендарныйДень)=ЗначениеНачалаНедели,CONCATENATE(\"Неделя \",WEEKNUM(КалендарныйДень),\"/День \",КалендарныйДень-DATE(YEAR(КалендарныйДень),1,0)),CONCATENATE(\"День \",КалендарныйДень-DATE(YEAR(КалендарныйДень),1,0)))","v":"День 249"},{"$f":"IF(WEEKDAY(КалендарныйДень)=ЗначениеНачалаНедели,CONCATENATE(\"Неделя \",WEEKNUM(КалендарныйДень),\"/День \",КалендарныйДень-DATE(YEAR(КалендарныйДень),1,0)),CONCATENATE(\"День \",КалендарныйДень-DATE(YEAR(КалендарныйДень),1,0)))","v":"День 250"},{"$f":"IF(WEEKDAY(КалендарныйДень)=ЗначениеНачалаНедели,CONCATENATE(\"Неделя \",WEEKNUM(КалендарныйДень),\"/День \",КалендарныйДень-DATE(YEAR(КалендарныйДень),1,0)),CONCATENATE(\"День \",КалендарныйДень-DATE(YEAR(КалендарныйДень),1,0)))","v":"День 251"}]
[]
[null,null,{"$f":"ДниИНедели+DATE(ГодКалендаря,9,1)-WEEKDAY(DATE(ГодКалендаря,9,1),(НачалоНедели=\"ПН\")+1)+15","v":"2018-09-09"},"2018-09-10","2018-09-11","2018-09-12","2018-09-13","2018-09-14","2018-09-15"]
[null,null,{"$f":"IF(WEEKDAY(КалендарныйДень)=ЗначениеНачалаНедели,CONCATENATE(\"Неделя \",WEEKNUM(КалендарныйДень),\"/День \",КалендарныйДень-DATE(YEAR(КалендарныйДень),1,0)),CONCATENATE(\"День \",КалендарныйДень-DATE(YEAR(КалендарныйДень),1,0)))","v":"Неделя 37/День 252"},{"$f":"IF(WEEKDAY(КалендарныйДень)=ЗначениеНачалаНедели,CONCATENATE(\"Неделя \",WEEKNUM(КалендарныйДень),\"/День \",КалендарныйДень-DATE(YEAR(КалендарныйДень),1,0)),CONCATENATE(\"День \",КалендарныйДень-DATE(YEAR(КалендарныйДень),1,0)))","v":"День 253"},{"$f":"IF(WEEKDAY(КалендарныйДень)=ЗначениеНачалаНедели,CONCATENATE(\"Неделя \",WEEKNUM(КалендарныйДень),\"/День \",КалендарныйДень-DATE(YEAR(КалендарныйДень),1,0)),CONCATENATE(\"День \",КалендарныйДень-DATE(YEAR(КалендарныйДень),1,0)))","v":"День 254"},{"$f":"IF(WEEKDAY(КалендарныйДень)=ЗначениеНачалаНедели,CONCATENATE(\"Неделя \",WEEKNUM(КалендарныйДень),\"/День \",КалендарныйДень-DATE(YEAR(КалендарныйДень),1,0)),CONCATENATE(\"День \",КалендарныйДень-DATE(YEAR(КалендарныйДень),1,0)))","v":"День 255"},{"$f":"IF(WEEKDAY(КалендарныйДень)=ЗначениеНачалаНедели,CONCATENATE(\"Неделя \",WEEKNUM(КалендарныйДень),\"/День \",КалендарныйДень-DATE(YEAR(КалендарныйДень),1,0)),CONCATENATE(\"День \",КалендарныйДень-DATE(YEAR(КалендарныйДень),1,0)))","v":"День 256"},{"$f":"IF(WEEKDAY(КалендарныйДень)=ЗначениеНачалаНедели,CONCATENATE(\"Неделя \",WEEKNUM(КалендарныйДень),\"/День \",КалендарныйДень-DATE(YEAR(КалендарныйДень),1,0)),CONCATENATE(\"День \",КалендарныйДень-DATE(YEAR(КалендарныйДень),1,0)))","v":"День 257"},{"$f":"IF(WEEKDAY(КалендарныйДень)=ЗначениеНачалаНедели,CONCATENATE(\"Неделя \",WEEKNUM(КалендарныйДень),\"/День \",КалендарныйДень-DATE(YEAR(КалендарныйДень),1,0)),CONCATENATE(\"День \",КалендарныйДень-DATE(YEAR(КалендарныйДень),1,0)))","v":"День 258"}]
[]
[null,null,{"$f":"ДниИНедели+DATE(ГодКалендаря,9,1)-WEEKDAY(DATE(ГодКалендаря,9,1),(НачалоНедели=\"ПН\")+1)+22","v":"2018-09-16"},"2018-09-17","2018-09-18","2018-09-19","2018-09-20","2018-09-21","2018-09-22"]
[null,null,{"$f":"IF(WEEKDAY(КалендарныйДень)=ЗначениеНачалаНедели,CONCATENATE(\"Неделя \",WEEKNUM(КалендарныйДень),\"/День \",КалендарныйДень-DATE(YEAR(КалендарныйДень),1,0)),CONCATENATE(\"День \",КалендарныйДень-DATE(YEAR(КалендарныйДень),1,0)))","v":"Неделя 38/День 259"},{"$f":"IF(WEEKDAY(КалендарныйДень)=ЗначениеНачалаНедели,CONCATENATE(\"Неделя \",WEEKNUM(КалендарныйДень),\"/День \",КалендарныйДень-DATE(YEAR(КалендарныйДень),1,0)),CONCATENATE(\"День \",КалендарныйДень-DATE(YEAR(КалендарныйДень),1,0)))","v":"День 260"},{"$f":"IF(WEEKDAY(КалендарныйДень)=ЗначениеНачалаНедели,CONCATENATE(\"Неделя \",WEEKNUM(КалендарныйДень),\"/День \",КалендарныйДень-DATE(YEAR(КалендарныйДень),1,0)),CONCATENATE(\"День \",КалендарныйДень-DATE(YEAR(КалендарныйДень),1,0)))","v":"День 261"},{"$f":"IF(WEEKDAY(КалендарныйДень)=ЗначениеНачалаНедели,CONCATENATE(\"Неделя \",WEEKNUM(КалендарныйДень),\"/День \",КалендарныйДень-DATE(YEAR(КалендарныйДень),1,0)),CONCATENATE(\"День \",КалендарныйДень-DATE(YEAR(КалендарныйДень),1,0)))","v":"День 262"},{"$f":"IF(WEEKDAY(КалендарныйДень)=ЗначениеНачалаНедели,CONCATENATE(\"Неделя \",WEEKNUM(КалендарныйДень),\"/День \",КалендарныйДень-DATE(YEAR(КалендарныйДень),1,0)),CONCATENATE(\"День \",КалендарныйДень-DATE(YEAR(КалендарныйДень),1,0)))","v":"День 263"},{"$f":"IF(WEEKDAY(КалендарныйДень)=ЗначениеНачалаНедели,CONCATENATE(\"Неделя \",WEEKNUM(КалендарныйДень),\"/День \",КалендарныйДень-DATE(YEAR(КалендарныйДень),1,0)),CONCATENATE(\"День \",КалендарныйДень-DATE(YEAR(КалендарныйДень),1,0)))","v":"День 264"},{"$f":"IF(WEEKDAY(КалендарныйДень)=ЗначениеНачалаНедели,CONCATENATE(\"Неделя \",WEEKNUM(КалендарныйДень),\"/День \",КалендарныйДень-DATE(YEAR(КалендарныйДень),1,0)),CONCATENATE(\"День \",КалендарныйДень-DATE(YEAR(КалендарныйДень),1,0)))","v":"День 265"}]
[]
[null,null,{"$f":"ДниИНедели+DATE(ГодКалендаря,9,1)-WEEKDAY(DATE(ГодКалендаря,9,1),(НачалоНедели=\"ПН\")+1)+29","v":"2018-09-23"},"2018-09-24","2018-09-25","2018-09-26","2018-09-27","2018-09-28","2018-09-29"]
[null,null,{"$f":"IF(WEEKDAY(КалендарныйДень)=ЗначениеНачалаНедели,CONCATENATE(\"Неделя \",WEEKNUM(КалендарныйДень),\"/День \",КалендарныйДень-DATE(YEAR(КалендарныйДень),1,0)),CONCATENATE(\"День \",КалендарныйДень-DATE(YEAR(КалендарныйДень),1,0)))","v":"Неделя 39/День 266"},{"$f":"IF(WEEKDAY(КалендарныйДень)=ЗначениеНачалаНедели,CONCATENATE(\"Неделя \",WEEKNUM(КалендарныйДень),\"/День \",КалендарныйДень-DATE(YEAR(КалендарныйДень),1,0)),CONCATENATE(\"День \",КалендарныйДень-DATE(YEAR(КалендарныйДень),1,0)))","v":"День 267"},{"$f":"IF(WEEKDAY(КалендарныйДень)=ЗначениеНачалаНедели,CONCATENATE(\"Неделя \",WEEKNUM(КалендарныйДень),\"/День \",КалендарныйДень-DATE(YEAR(КалендарныйДень),1,0)),CONCATENATE(\"День \",КалендарныйДень-DATE(YEAR(КалендарныйДень),1,0)))","v":"День 268"},{"$f":"IF(WEEKDAY(КалендарныйДень)=ЗначениеНачалаНедели,CONCATENATE(\"Неделя \",WEEKNUM(КалендарныйДень),\"/День \",КалендарныйДень-DATE(YEAR(КалендарныйДень),1,0)),CONCATENATE(\"День \",КалендарныйДень-DATE(YEAR(КалендарныйДень),1,0)))","v":"День 269"},{"$f":"IF(WEEKDAY(КалендарныйДень)=ЗначениеНачалаНедели,CONCATENATE(\"Неделя \",WEEKNUM(КалендарныйДень),\"/День \",КалендарныйДень-DATE(YEAR(КалендарныйДень),1,0)),CONCATENATE(\"День \",КалендарныйДень-DATE(YEAR(КалендарныйДень),1,0)))","v":"День 270"},{"$f":"IF(WEEKDAY(КалендарныйДень)=ЗначениеНачалаНедели,CONCATENATE(\"Неделя \",WEEKNUM(КалендарныйДень),\"/День \",КалендарныйДень-DATE(YEAR(КалендарныйДень),1,0)),CONCATENATE(\"День \",КалендарныйДень-DATE(YEAR(КалендарныйДень),1,0)))","v":"День 271"},{"$f":"IF(WEEKDAY(КалендарныйДень)=ЗначениеНачалаНедели,CONCATENATE(\"Неделя \",WEEKNUM(КалендарныйДень),\"/День \",КалендарныйДень-DATE(YEAR(КалендарныйДень),1,0)),CONCATENATE(\"День \",КалендарныйДень-DATE(YEAR(КалендарныйДень),1,0)))","v":"День 272"}]
[{"$nulls":4},"ЗАМЕТКИ"]
[]
[null,null,{"$f":"ДниИНедели+DATE(ГодКалендаря,9,1)-WEEKDAY(DATE(ГодКалендаря,9,1),(НачалоНедели=\"ПН\")+1)+36","v":"2018-09-30"},"2018-10-01"]
[null,null,{"$f":"IF(WEEKDAY(КалендарныйДень)=ЗначениеНачалаНедели,CONCATENATE(\"Неделя \",WEEKNUM(КалендарныйДень),\"/День \",КалендарныйДень-DATE(YEAR(КалендарныйДень),1,0)),CONCATENATE(\"День \",КалендарныйДень-DATE(YEAR(КалендарныйДень),1,0)))","v":"Неделя 40/День 273"},{"$f":"IF(WEEKDAY(КалендарныйДень)=ЗначениеНачалаНедели,CONCATENATE(\"Неделя \",WEEKNUM(КалендарныйДень),\"/День \",КалендарныйДень-DATE(YEAR(КалендарныйДень),1,0)),CONCATENATE(\"День \",КалендарныйДень-DATE(YEAR(КалендарныйДень),1,0)))","v":"День 274"}]

{"sheet":"ОКТ","index":9,"n_rows":20,"n_cols":9,"rows_kept":20,"merged":[[16,2,17,2],[17,4,19,8]]}
[null,"ОКТ",{"$f":"UPPER(TEXT(НачалоНедели,\"ddd\"))","v":"ВС"},{"$f":"UPPER(TEXT(D3,\"ДДД\"))","v":"ПН"},"ВТ","СР","ЧТ","ПТ","СБ"]
[null,{"$f":"ГодКалендаря","v":2018}]
[null,null,{"$f":"ДниИНедели+DATE(ГодКалендаря,10,1)-WEEKDAY(DATE(ГодКалендаря,10,1),(НачалоНедели=\"ПН\")+1)+1","v":"2018-09-30"},"2018-10-01","2018-10-02","2018-10-03","2018-10-04","2018-10-05","2018-10-06"]
[null,null,{"$f":"IF(DAY(КалендарныйДень)=1,CONCATENATE(\"Неделя \",WEEKNUM(КалендарныйДень),\"/День \",КалендарныйДень-DATE(YEAR(КалендарныйДень),1,0)),CONCATENATE(\"День \",КалендарныйДень-DATE(YEAR(КалендарныйДень),1,0)))","v":"День 273"},"Неделя 40/День 274","День 275","День 276","День 277","День 278","День 279"]
[]
[null,null,{"$f":"ДниИНедели+DATE(ГодКалендаря,10,1)-WEEKDAY(DATE(ГодКалендаря,10,1),(НачалоНедели=\"ПН\")+1)+8","v":"2018-10-07"},"2018-10-08","2018-10-09","2018-10-10","2018-10-11","2018-10-12","2018-10-13"]
[null,null,{"$f":"IF(WEEKDAY(КалендарныйДень)=ЗначениеНачалаНедели,CONCATENATE(\"Неделя \",WEEKNUM(КалендарныйДень),\"/День \",КалендарныйДень-DATE(YEAR(КалендарныйДень),1,0)),CONCATENATE(\"День \",КалендарныйДень-DATE(YEAR(КалендарныйДень),1,0)))","v":"Неделя 41/День 280"},{"$f":"IF(WEEKDAY(КалендарныйДень)=ЗначениеНачалаНедели,CONCATENATE(\"Неделя \",WEEKNUM(КалендарныйДень),\"/День \",КалендарныйДень-DATE(YEAR(КалендарныйДень),1,0)),CONCATENATE(\"День \",КалендарныйДень-DATE(YEAR(КалендарныйДень),1,0)))","v":"День 281"},{"$f":"IF(WEEKDAY(КалендарныйДень)=ЗначениеНачалаНедели,CONCATENATE(\"Неделя \",WEEKNUM(КалендарныйДень),\"/День \",КалендарныйДень-DATE(YEAR(КалендарныйДень),1,0)),CONCATENATE(\"День \",КалендарныйДень-DATE(YEAR(КалендарныйДень),1,0)))","v":"День 282"},{"$f":"IF(WEEKDAY(КалендарныйДень)=ЗначениеНачалаНедели,CONCATENATE(\"Неделя \",WEEKNUM(КалендарныйДень),\"/День \",КалендарныйДень-DATE(YEAR(КалендарныйДень),1,0)),CONCATENATE(\"День \",КалендарныйДень-DATE(YEAR(КалендарныйДень),1,0)))","v":"День 283"},{"$f":"IF(WEEKDAY(КалендарныйДень)=ЗначениеНачалаНедели,CONCATENATE(\"Неделя \",WEEKNUM(КалендарныйДень),\"/День \",КалендарныйДень-DATE(YEAR(КалендарныйДень),1,0)),CONCATENATE(\"День \",КалендарныйДень-DATE(YEAR(КалендарныйДень),1,0)))","v":"День 284"},{"$f":"IF(WEEKDAY(КалендарныйДень)=ЗначениеНачалаНедели,CONCATENATE(\"Неделя \",WEEKNUM(КалендарныйДень),\"/День \",КалендарныйДень-DATE(YEAR(КалендарныйДень),1,0)),CONCATENATE(\"День \",КалендарныйДень-DATE(YEAR(КалендарныйДень),1,0)))","v":"День 285"},{"$f":"IF(WEEKDAY(КалендарныйДень)=ЗначениеНачалаНедели,CONCATENATE(\"Неделя \",WEEKNUM(КалендарныйДень),\"/День \",КалендарныйДень-DATE(YEAR(КалендарныйДень),1,0)),CONCATENATE(\"День \",КалендарныйДень-DATE(YEAR(КалендарныйДень),1,0)))","v":"День 286"}]
[]
[null,null,{"$f":"ДниИНедели+DATE(ГодКалендаря,10,1)-WEEKDAY(DATE(ГодКалендаря,10,1),(НачалоНедели=\"ПН\")+1)+15","v":"2018-10-14"},"2018-10-15","2018-10-16","2018-10-17","2018-10-18","2018-10-19","2018-10-20"]
[null,null,{"$f":"IF(WEEKDAY(КалендарныйДень)=ЗначениеНачалаНедели,CONCATENATE(\"Неделя \",WEEKNUM(КалендарныйДень),\"/День \",КалендарныйДень-DATE(YEAR(КалендарныйДень),1,0)),CONCATENATE(\"День \",КалендарныйДень-DATE(YEAR(КалендарныйДень),1,0)))","v":"Неделя 42/День 287"},{"$f":"IF(WEEKDAY(КалендарныйДень)=ЗначениеНачалаНедели,CONCATENATE(\"Неделя \",WEEKNUM(КалендарныйДень),\"/День \",КалендарныйДень-DATE(YEAR(КалендарныйДень),1,0)),CONCATENATE(\"День \",КалендарныйДень-DATE(YEAR(КалендарныйДень),1,0)))","v":"День 288"},{"$f":"IF(WEEKDAY(КалендарныйДень)=ЗначениеНачалаНедели,CONCATENATE(\"Неделя \",WEEKNUM(КалендарныйДень),\"/День \",КалендарныйДень-DATE(YEAR(КалендарныйДень),1,0)),CONCATENATE(\"День \",КалендарныйДень-DATE(YEAR(КалендарныйДень),1,0)))","v":"День 289"},{"$f":"IF(WEEKDAY(КалендарныйДень)=ЗначениеНачалаНедели,CONCATENATE(\"Неделя \",WEEKNUM(КалендарныйДень),\"/День \",КалендарныйДень-DATE(YEAR(КалендарныйДень),1,0)),CONCATENATE(\"День \",КалендарныйДень-DATE(YEAR(КалендарныйДень),1,0)))","v":"День 290"},{"$f":"IF(WEEKDAY(КалендарныйДень)=ЗначениеНачалаНедели,CONCATENATE(\"Неделя \",WEEKNUM(КалендарныйДень),\"/День \",КалендарныйДень-DATE(YEAR(КалендарныйДень),1,0)),CONCATENATE(\"День \",КалендарныйДень-DATE(YEAR(КалендарныйДень),1,0)))","v":"День 291"},{"$f":"IF(WEEKDAY(КалендарныйДень)=ЗначениеНачалаНедели,CONCATENATE(\"Неделя \",WEEKNUM(КалендарныйДень),\"/День \",КалендарныйДень-DATE(YEAR(КалендарныйДень),1,0)),CONCATENATE(\"День \",КалендарныйДень-DATE(YEAR(КалендарныйДень),1,0)))","v":"День 292"},{"$f":"IF(WEEKDAY(КалендарныйДень)=ЗначениеНачалаНедели,CONCATENATE(\"Неделя \",WEEKNUM(КалендарныйДень),\"/День \",КалендарныйДень-DATE(YEAR(КалендарныйДень),1,0)),CONCATENATE(\"День \",КалендарныйДень-DATE(YEAR(КалендарныйДень),1,0)))","v":"День 293"}]
[]
[null,null,{"$f":"ДниИНедели+DATE(ГодКалендаря,10,1)-WEEKDAY(DATE(ГодКалендаря,10,1),(НачалоНедели=\"ПН\")+1)+22","v":"2018-10-21"},"2018-10-22","2018-10-23","2018-10-24","2018-10-25","2018-10-26","2018-10-27"]
[null,null,{"$f":"IF(WEEKDAY(КалендарныйДень)=ЗначениеНачалаНедели,CONCATENATE(\"Неделя \",WEEKNUM(КалендарныйДень),\"/День \",КалендарныйДень-DATE(YEAR(КалендарныйДень),1,0)),CONCATENATE(\"День \",КалендарныйДень-DATE(YEAR(КалендарныйДень),1,0)))","v":"Неделя 43/День 294"},{"$f":"IF(WEEKDAY(КалендарныйДень)=ЗначениеНачалаНедели,CONCATENATE(\"Неделя \",WEEKNUM(КалендарныйДень),\"/День \",КалендарныйДень-DATE(YEAR(КалендарныйДень),1,0)),CONCATENATE(\"День \",КалендарныйДень-DATE(YEAR(КалендарныйДень),1,0)))","v":"День 295"},{"$f":"IF(WEEKDAY(КалендарныйДень)=ЗначениеНачалаНедели,CONCATENATE(\"Неделя \",WEEKNUM(КалендарныйДень),\"/День \",КалендарныйДень-DATE(YEAR(КалендарныйДень),1,0)),CONCATENATE(\"День \",КалендарныйДень-DATE(YEAR(КалендарныйДень),1,0)))","v":"День 296"},{"$f":"IF(WEEKDAY(КалендарныйДень)=ЗначениеНачалаНедели,CONCATENATE(\"Неделя \",WEEKNUM(КалендарныйДень),\"/День \",КалендарныйДень-DATE(YEAR(КалендарныйДень),1,0)),CONCATENATE(\"День \",КалендарныйДень-DATE(YEAR(КалендарныйДень),1,0)))","v":"День 297"},{"$f":"IF(WEEKDAY(КалендарныйДень)=ЗначениеНачалаНедели,CONCATENATE(\"Неделя \",WEEKNUM(КалендарныйДень),\"/День \",КалендарныйДень-DATE(YEAR(КалендарныйДень),1,0)),CONCATENATE(\"День \",КалендарныйДень-DATE(YEAR(КалендарныйДень),1,0)))","v":"День 298"},{"$f":"IF(WEEKDAY(КалендарныйДень)=ЗначениеНачалаНедели,CONCATENATE(\"Неделя \",WEEKNUM(КалендарныйДень),\"/День \",КалендарныйДень-DATE(YEAR(КалендарныйДень),1,0)),CONCATENATE(\"День \",КалендарныйДень-DATE(YEAR(КалендарныйДень),1,0)))","v":"День 299"},{"$f":"IF(WEEKDAY(КалендарныйДень)=ЗначениеНачалаНедели,CONCATENATE(\"Неделя \",WEEKNUM(КалендарныйДень),\"/День \",КалендарныйДень-DATE(YEAR(КалендарныйДень),1,0)),CONCATENATE(\"День \",КалендарныйДень-DATE(YEAR(КалендарныйДень),1,0)))","v":"День 300"}]
[]
[null,null,{"$f":"ДниИНедели+DATE(ГодКалендаря,10,1)-WEEKDAY(DATE(ГодКалендаря,10,1),(НачалоНедели=\"ПН\")+1)+29","v":"2018-10-28"},"2018-10-29","2018-10-30","2018-10-31","2018-11-01","2018-11-02","2018-11-03"]
[null,null,{"$f":"IF(WEEKDAY(КалендарныйДень)=ЗначениеНачалаНедели,CONCATENATE(\"Неделя \",WEEKNUM(КалендарныйДень),\"/День \",КалендарныйДень-DATE(YEAR(КалендарныйДень),1,0)),CONCATENATE(\"День \",КалендарныйДень-DATE(YEAR(КалендарныйДень),1,0)))","v":"Неделя 44/День 301"},{"$f":"IF(WEEKDAY(КалендарныйДень)=ЗначениеНачалаНедели,CONCATENATE(\"Неделя \",WEEKNUM(КалендарныйДень),\"/День \",КалендарныйДень-DATE(YEAR(КалендарныйДень),1,0)),CONCATENATE(\"День \",КалендарныйДень-DATE(YEAR(КалендарныйДень),1,0)))","v":"День 302"},{"$f":"IF(WEEKDAY(КалендарныйДень)=ЗначениеНачалаНедели,CONCATENATE(\"Неделя \",WEEKNUM(КалендарныйДень),\"/День \",КалендарныйДень-DATE(YEAR(КалендарныйДень),1,0)),CONCATENATE(\"День \",КалендарныйДень-DATE(YEAR(КалендарныйДень),1,0)))","v":"День 303"},{"$f":"IF(WEEKDAY(КалендарныйДень)=ЗначениеНачалаНедели,CONCATENATE(\"Неделя \",WEEKNUM(КалендарныйДень),\"/День \",КалендарныйДень-DATE(YEAR(КалендарныйДень),1,0)),CONCATENATE(\"День \",КалендарныйДень-DATE(YEAR(КалендарныйДень),1,0)))","v":"День 304"},{"$f":"IF(WEEKDAY(КалендарныйДень)=ЗначениеНачалаНедели,CONCATENATE(\"Неделя \",WEEKNUM(КалендарныйДень),\"/День \",КалендарныйДень-DATE(YEAR(КалендарныйДень),1,0)),CONCATENATE(\"День \",КалендарныйДень-DATE(YEAR(КалендарныйДень),1,0)))","v":"День 305"},{"$f":"IF(WEEKDAY(КалендарныйДень)=ЗначениеНачалаНедели,CONCATENATE(\"Неделя \",WEEKNUM(КалендарныйДень),\"/День \",КалендарныйДень-DATE(YEAR(КалендарныйДень),1,0)),CONCATENATE(\"День \",КалендарныйДень-DATE(YEAR(КалендарныйДень),1,0)))","v":"День 306"},{"$f":"IF(WEEKDAY(КалендарныйДень)=ЗначениеНачалаНедели,CONCATENATE(\"Неделя \",WEEKNUM(КалендарныйДень),\"/День \",КалендарныйДень-DATE(YEAR(КалендарныйДень),1,0)),CONCATENATE(\"День \",КалендарныйДень-DATE(YEAR(КалендарныйДень),1,0)))","v":"День 307"}]
[{"$nulls":4},"ЗАМЕТКИ"]
[]
[null,null,{"$f":"ДниИНедели+DATE(ГодКалендаря,10,1)-WEEKDAY(DATE(ГодКалендаря,10,1),(НачалоНедели=\"ПН\")+1)+36","v":"2018-11-04"},"2018-11-05"]
[null,null,{"$f":"IF(WEEKDAY(КалендарныйДень)=ЗначениеНачалаНедели,CONCATENATE(\"Неделя \",WEEKNUM(КалендарныйДень),\"/День \",КалендарныйДень-DATE(YEAR(КалендарныйДень),1,0)),CONCATENATE(\"День \",КалендарныйДень-DATE(YEAR(КалендарныйДень),1,0)))","v":"Неделя 45/День 308"},{"$f":"IF(WEEKDAY(КалендарныйДень)=ЗначениеНачалаНедели,CONCATENATE(\"Неделя \",WEEKNUM(КалендарныйДень),\"/День \",КалендарныйДень-DATE(YEAR(КалендарныйДень),1,0)),CONCATENATE(\"День \",КалендарныйДень-DATE(YEAR(КалендарныйДень),1,0)))","v":"День 309"}]

{"sheet":"НОЯ","index":10,"n_rows":20,"n_cols":9,"rows_kept":20,"merged":[[16,2,17,2],[17,4,19,8]]}
[null,"НОЯ",{"$f":"UPPER(TEXT(НачалоНедели,\"ddd\"))","v":"ВС"},{"$f":"UPPER(TEXT(D3,\"ДДД\"))","v":"ПН"},"ВТ","СР","ЧТ","ПТ","СБ"]
[null,{"$f":"ГодКалендаря","v":2018}]
[null,null,{"$f":"ДниИНедели+DATE(ГодКалендаря,11,1)-WEEKDAY(DATE(ГодКалендаря,11,1),(НачалоНедели=\"ПН\")+1)+1","v":"2018-10-28"},"2018-10-29","2018-10-30","2018-10-31","2018-11-01","2018-11-02","2018-11-03"]
[null,null,{"$f":"IF(DAY(КалендарныйДень)=1,CONCATENATE(\"Неделя \",WEEKNUM(КалендарныйДень),\"/День \",КалендарныйДень-DATE(YEAR(КалендарныйДень),1,0)),CONCATENATE(\"День \",КалендарныйДень-DATE(YEAR(КалендарныйДень),1,0)))","v":"День 301"},"День 302","День 303","День 304","Неделя 44/День 305","День 306","День 307"]
[]
[null,null,{"$f":"ДниИНедели+DATE(ГодКалендаря,11,1)-WEEKDAY(DATE(ГодКалендаря,11,1),(НачалоНедели=\"ПН\")+1)+8","v":"2018-11-04"},"2018-11-05","2018-11-06","2018-11-07","2018-11-08","2018-11-09","2018-11-10"]
[null,null,{"$f":"IF(WEEKDAY(КалендарныйДень)=ЗначениеНачалаНедели,CONCATENATE(\"Неделя \",WEEKNUM(КалендарныйДень),\"/День \",КалендарныйДень-DATE(YEAR(КалендарныйДень),1,0)),CONCATENATE(\"День \",КалендарныйДень-DATE(YEAR(КалендарныйДень),1,0)))","v":"Неделя 45/День 308"},{"$f":"IF(WEEKDAY(КалендарныйДень)=ЗначениеНачалаНедели,CONCATENATE(\"Неделя \",WEEKNUM(КалендарныйДень),\"/День \",КалендарныйДень-DATE(YEAR(КалендарныйДень),1,0)),CONCATENATE(\"День \",КалендарныйДень-DATE(YEAR(КалендарныйДень),1,0)))","v":"День 309"},{"$f":"IF(WEEKDAY(КалендарныйДень)=ЗначениеНачалаНедели,CONCATENATE(\"Неделя \",WEEKNUM(КалендарныйДень),\"/День \",КалендарныйДень-DATE(YEAR(КалендарныйДень),1,0)),CONCATENATE(\"День \",КалендарныйДень-DATE(YEAR(КалендарныйДень),1,0)))","v":"День 310"},{"$f":"IF(WEEKDAY(КалендарныйДень)=ЗначениеНачалаНедели,CONCATENATE(\"Неделя \",WEEKNUM(КалендарныйДень),\"/День \",КалендарныйДень-DATE(YEAR(КалендарныйДень),1,0)),CONCATENATE(\"День \",КалендарныйДень-DATE(YEAR(КалендарныйДень),1,0)))","v":"День 311"},{"$f":"IF(WEEKDAY(КалендарныйДень)=ЗначениеНачалаНедели,CONCATENATE(\"Неделя \",WEEKNUM(КалендарныйДень),\"/День \",КалендарныйДень-DATE(YEAR(КалендарныйДень),1,0)),CONCATENATE(\"День \",КалендарныйДень-DATE(YEAR(КалендарныйДень),1,0)))","v":"День 312"},{"$f":"IF(WEEKDAY(КалендарныйДень)=ЗначениеНачалаНедели,CONCATENATE(\"Неделя \",WEEKNUM(КалендарныйДень),\"/День \",КалендарныйДень-DATE(YEAR(КалендарныйДень),1,0)),CONCATENATE(\"День \",КалендарныйДень-DATE(YEAR(КалендарныйДень),1,0)))","v":"День 313"},{"$f":"IF(WEEKDAY(КалендарныйДень)=ЗначениеНачалаНедели,CONCATENATE(\"Неделя \",WEEKNUM(КалендарныйДень),\"/День \",КалендарныйДень-DATE(YEAR(КалендарныйДень),1,0)),CONCATENATE(\"День \",КалендарныйДень-DATE(YEAR(КалендарныйДень),1,0)))","v":"День 314"}]
[]
[null,null,{"$f":"ДниИНедели+DATE(ГодКалендаря,11,1)-WEEKDAY(DATE(ГодКалендаря,11,1),(НачалоНедели=\"ПН\")+1)+15","v":"2018-11-11"},"2018-11-12","2018-11-13","2018-11-14","2018-11-15","2018-11-16","2018-11-17"]
[null,null,{"$f":"IF(WEEKDAY(КалендарныйДень)=ЗначениеНачалаНедели,CONCATENATE(\"Неделя \",WEEKNUM(КалендарныйДень),\"/День \",КалендарныйДень-DATE(YEAR(КалендарныйДень),1,0)),CONCATENATE(\"День \",КалендарныйДень-DATE(YEAR(КалендарныйДень),1,0)))","v":"Неделя 46/День 315"},{"$f":"IF(WEEKDAY(КалендарныйДень)=ЗначениеНачалаНедели,CONCATENATE(\"Неделя \",WEEKNUM(КалендарныйДень),\"/День \",КалендарныйДень-DATE(YEAR(КалендарныйДень),1,0)),CONCATENATE(\"День \",КалендарныйДень-DATE(YEAR(КалендарныйДень),1,0)))","v":"День 316"},{"$f":"IF(WEEKDAY(КалендарныйДень)=ЗначениеНачалаНедели,CONCATENATE(\"Неделя \",WEEKNUM(КалендарныйДень),\"/День \",КалендарныйДень-DATE(YEAR(КалендарныйДень),1,0)),CONCATENATE(\"День \",КалендарныйДень-DATE(YEAR(КалендарныйДень),1,0)))","v":"День 317"},{"$f":"IF(WEEKDAY(КалендарныйДень)=ЗначениеНачалаНедели,CONCATENATE(\"Неделя \",WEEKNUM(КалендарныйДень),\"/День \",КалендарныйДень-DATE(YEAR(КалендарныйДень),1,0)),CONCATENATE(\"День \",КалендарныйДень-DATE(YEAR(КалендарныйДень),1,0)))","v":"День 318"},{"$f":"IF(WEEKDAY(КалендарныйДень)=ЗначениеНачалаНедели,CONCATENATE(\"Неделя \",WEEKNUM(КалендарныйДень),\"/День \",КалендарныйДень-DATE(YEAR(КалендарныйДень),1,0)),CONCATENATE(\"День \",КалендарныйДень-DATE(YEAR(КалендарныйДень),1,0)))","v":"День 319"},{"$f":"IF(WEEKDAY(КалендарныйДень)=ЗначениеНачалаНедели,CONCATENATE(\"Неделя \",WEEKNUM(КалендарныйДень),\"/День \",КалендарныйДень-DATE(YEAR(КалендарныйДень),1,0)),CONCATENATE(\"День \",КалендарныйДень-DATE(YEAR(КалендарныйДень),1,0)))","v":"День 320"},{"$f":"IF(WEEKDAY(КалендарныйДень)=ЗначениеНачалаНедели,CONCATENATE(\"Неделя \",WEEKNUM(КалендарныйДень),\"/День \",КалендарныйДень-DATE(YEAR(КалендарныйДень),1,0)),CONCATENATE(\"День \",КалендарныйДень-DATE(YEAR(КалендарныйДень),1,0)))","v":"День 321"}]
[]
[null,null,{"$f":"ДниИНедели+DATE(ГодКалендаря,11,1)-WEEKDAY(DATE(ГодКалендаря,11,1),(НачалоНедели=\"ПН\")+1)+22","v":"2018-11-18"},"2018-11-19","2018-11-20","2018-11-21","2018-11-22","2018-11-23","2018-11-24"]
[null,null,{"$f":"IF(WEEKDAY(КалендарныйДень)=ЗначениеНачалаНедели,CONCATENATE(\"Неделя \",WEEKNUM(КалендарныйДень),\"/День \",КалендарныйДень-DATE(YEAR(КалендарныйДень),1,0)),CONCATENATE(\"День \",КалендарныйДень-DATE(YEAR(КалендарныйДень),1,0)))","v":"Неделя 47/День 322"},{"$f":"IF(WEEKDAY(КалендарныйДень)=ЗначениеНачалаНедели,CONCATENATE(\"Неделя \",WEEKNUM(КалендарныйДень),\"/День \",КалендарныйДень-DATE(YEAR(КалендарныйДень),1,0)),CONCATENATE(\"День \",КалендарныйДень-DATE(YEAR(КалендарныйДень),1,0)))","v":"День 323"},{"$f":"IF(WEEKDAY(КалендарныйДень)=ЗначениеНачалаНедели,CONCATENATE(\"Неделя \",WEEKNUM(КалендарныйДень),\"/День \",КалендарныйДень-DATE(YEAR(КалендарныйДень),1,0)),CONCATENATE(\"День \",КалендарныйДень-DATE(YEAR(КалендарныйДень),1,0)))","v":"День 324"},{"$f":"IF(WEEKDAY(КалендарныйДень)=ЗначениеНачалаНедели,CONCATENATE(\"Неделя \",WEEKNUM(КалендарныйДень),\"/День \",КалендарныйДень-DATE(YEAR(КалендарныйДень),1,0)),CONCATENATE(\"День \",КалендарныйДень-DATE(YEAR(КалендарныйДень),1,0)))","v":"День 325"},{"$f":"IF(WEEKDAY(КалендарныйДень)=ЗначениеНачалаНедели,CONCATENATE(\"Неделя \",WEEKNUM(КалендарныйДень),\"/День \",КалендарныйДень-DATE(YEAR(КалендарныйДень),1,0)),CONCATENATE(\"День \",КалендарныйДень-DATE(YEAR(КалендарныйДень),1,0)))","v":"День 326"},{"$f":"IF(WEEKDAY(КалендарныйДень)=ЗначениеНачалаНедели,CONCATENATE(\"Неделя \",WEEKNUM(КалендарныйДень),\"/День \",КалендарныйДень-DATE(YEAR(КалендарныйДень),1,0)),CONCATENATE(\"День \",КалендарныйДень-DATE(YEAR(КалендарныйДень),1,0)))","v":"День 327"},{"$f":"IF(WEEKDAY(КалендарныйДень)=ЗначениеНачалаНедели,CONCATENATE(\"Неделя \",WEEKNUM(КалендарныйДень),\"/День \",КалендарныйДень-DATE(YEAR(КалендарныйДень),1,0)),CONCATENATE(\"День \",КалендарныйДень-DATE(YEAR(КалендарныйДень),1,0)))","v":"День 328"}]
[]
[null,null,{"$f":"ДниИНедели+DATE(ГодКалендаря,11,1)-WEEKDAY(DATE(ГодКалендаря,11,1),(НачалоНедели=\"ПН\")+1)+29","v":"2018-11-25"},"2018-11-26","2018-11-27","2018-11-28","2018-11-29","2018-11-30","2018-12-01"]
[null,null,{"$f":"IF(WEEKDAY(КалендарныйДень)=ЗначениеНачалаНедели,CONCATENATE(\"Неделя \",WEEKNUM(КалендарныйДень),\"/День \",КалендарныйДень-DATE(YEAR(КалендарныйДень),1,0)),CONCATENATE(\"День \",КалендарныйДень-DATE(YEAR(КалендарныйДень),1,0)))","v":"Неделя 48/День 329"},{"$f":"IF(WEEKDAY(КалендарныйДень)=ЗначениеНачалаНедели,CONCATENATE(\"Неделя \",WEEKNUM(КалендарныйДень),\"/День \",КалендарныйДень-DATE(YEAR(КалендарныйДень),1,0)),CONCATENATE(\"День \",КалендарныйДень-DATE(YEAR(КалендарныйДень),1,0)))","v":"День 330"},{"$f":"IF(WEEKDAY(КалендарныйДень)=ЗначениеНачалаНедели,CONCATENATE(\"Неделя \",WEEKNUM(КалендарныйДень),\"/День \",КалендарныйДень-DATE(YEAR(КалендарныйДень),1,0)),CONCATENATE(\"День \",КалендарныйДень-DATE(YEAR(КалендарныйДень),1,0)))","v":"День 331"},{"$f":"IF(WEEKDAY(КалендарныйДень)=ЗначениеНачалаНедели,CONCATENATE(\"Неделя \",WEEKNUM(КалендарныйДень),\"/День \",КалендарныйДень-DATE(YEAR(КалендарныйДень),1,0)),CONCATENATE(\"День \",КалендарныйДень-DATE(YEAR(КалендарныйДень),1,0)))","v":"День 332"},{"$f":"IF(WEEKDAY(КалендарныйДень)=ЗначениеНачалаНедели,CONCATENATE(\"Неделя \",WEEKNUM(КалендарныйДень),\"/День \",КалендарныйДень-DATE(YEAR(КалендарныйДень),1,0)),CONCATENATE(\"День \",КалендарныйДень-DATE(YEAR(КалендарныйДень),1,0)))","v":"День 333"},{"$f":"IF(WEEKDAY(КалендарныйДень)=ЗначениеНачалаНедели,CONCATENATE(\"Неделя \",WEEKNUM(КалендарныйДень),\"/День \",КалендарныйДень-DATE(YEAR(КалендарныйДень),1,0)),CONCATENATE(\"День \",КалендарныйДень-DATE(YEAR(КалендарныйДень),1,0)))","v":"День 334"},{"$f":"IF(WEEKDAY(КалендарныйДень)=ЗначениеНачалаНедели,CONCATENATE(\"Неделя \",WEEKNUM(КалендарныйДень),\"/День \",КалендарныйДень-DATE(YEAR(КалендарныйДень),1,0)),CONCATENATE(\"День \",КалендарныйДень-DATE(YEAR(КалендарныйДень),1,0)))","v":"День 335"}]
[{"$nulls":4},"ЗАМЕТКИ"]
[]
[null,null,{"$f":"ДниИНедели+DATE(ГодКалендаря,11,1)-WEEKDAY(DATE(ГодКалендаря,11,1),(НачалоНедели=\"ПН\")+1)+36","v":"2018-12-02"},"2018-12-03"]
[null,null,{"$f":"IF(WEEKDAY(КалендарныйДень)=ЗначениеНачалаНедели,CONCATENATE(\"Неделя \",WEEKNUM(КалендарныйДень),\"/День \",КалендарныйДень-DATE(YEAR(КалендарныйДень),1,0)),CONCATENATE(\"День \",КалендарныйДень-DATE(YEAR(КалендарныйДень),1,0)))","v":"Неделя 49/День 336"},{"$f":"IF(WEEKDAY(КалендарныйДень)=ЗначениеНачалаНедели,CONCATENATE(\"Неделя \",WEEKNUM(КалендарныйДень),\"/День \",КалендарныйДень-DATE(YEAR(КалендарныйДень),1,0)),CONCATENATE(\"День \",КалендарныйДень-DATE(YEAR(КалендарныйДень),1,0)))","v":"День 337"}]

{"sheet":"ДЕК","index":11,"n_rows":20,"n_cols":9,"rows_kept":20,"merged":[[16,2,17,2],[17,4,19,8]]}
[null,"ДЕК",{"$f":"UPPER(TEXT(НачалоНедели,\"ddd\"))","v":"ВС"},{"$f":"UPPER(TEXT(D3,\"ДДД\"))","v":"ПН"},"ВТ","СР","ЧТ","ПТ","СБ"]
[null,{"$f":"ГодКалендаря","v":2018}]
[null,null,{"$f":"ДниИНедели+DATE(ГодКалендаря,12,1)-WEEKDAY(DATE(ГодКалендаря,12,1),(НачалоНедели=\"ПН\")+1)+1","v":"2018-11-25"},"2018-11-26","2018-11-27","2018-11-28","2018-11-29","2018-11-30","2018-12-01"]
[null,null,{"$f":"IF(DAY(КалендарныйДень)=1,CONCATENATE(\"Неделя \",WEEKNUM(КалендарныйДень),\"/День \",КалендарныйДень-DATE(YEAR(КалендарныйДень),1,0)),CONCATENATE(\"День \",КалендарныйДень-DATE(YEAR(КалендарныйДень),1,0)))","v":"День 329"},"День 330","День 331","День 332","День 333","День 334","Неделя 48/День 335"]
[]
[null,null,{"$f":"ДниИНедели+DATE(ГодКалендаря,12,1)-WEEKDAY(DATE(ГодКалендаря,12,1),(НачалоНедели=\"ПН\")+1)+8","v":"2018-12-02"},"2018-12-03","2018-12-04","2018-12-05","2018-12-06","2018-12-07","2018-12-08"]
[null,null,{"$f":"IF(WEEKDAY(КалендарныйДень)=ЗначениеНачалаНедели,CONCATENATE(\"Неделя \",WEEKNUM(КалендарныйДень),\"/День \",КалендарныйДень-DATE(YEAR(КалендарныйДень),1,0)),CONCATENATE(\"День \",КалендарныйДень-DATE(YEAR(КалендарныйДень),1,0)))","v":"Неделя 49/День 336"},{"$f":"IF(WEEKDAY(КалендарныйДень)=ЗначениеНачалаНедели,CONCATENATE(\"Неделя \",WEEKNUM(КалендарныйДень),\"/День \",КалендарныйДень-DATE(YEAR(КалендарныйДень),1,0)),CONCATENATE(\"День \",КалендарныйДень-DATE(YEAR(КалендарныйДень),1,0)))","v":"День 337"},{"$f":"IF(WEEKDAY(КалендарныйДень)=ЗначениеНачалаНедели,CONCATENATE(\"Неделя \",WEEKNUM(КалендарныйДень),\"/День \",КалендарныйДень-DATE(YEAR(КалендарныйДень),1,0)),CONCATENATE(\"День \",КалендарныйДень-DATE(YEAR(КалендарныйДень),1,0)))","v":"День 338"},{"$f":"IF(WEEKDAY(КалендарныйДень)=ЗначениеНачалаНедели,CONCATENATE(\"Неделя \",WEEKNUM(КалендарныйДень),\"/День \",КалендарныйДень-DATE(YEAR(КалендарныйДень),1,0)),CONCATENATE(\"День \",КалендарныйДень-DATE(YEAR(КалендарныйДень),1,0)))","v":"День 339"},{"$f":"IF(WEEKDAY(КалендарныйДень)=ЗначениеНачалаНедели,CONCATENATE(\"Неделя \",WEEKNUM(КалендарныйДень),\"/День \",КалендарныйДень-DATE(YEAR(КалендарныйДень),1,0)),CONCATENATE(\"День \",КалендарныйДень-DATE(YEAR(КалендарныйДень),1,0)))","v":"День 340"},{"$f":"IF(WEEKDAY(КалендарныйДень)=ЗначениеНачалаНедели,CONCATENATE(\"Неделя \",WEEKNUM(КалендарныйДень),\"/День \",КалендарныйДень-DATE(YEAR(КалендарныйДень),1,0)),CONCATENATE(\"День \",КалендарныйДень-DATE(YEAR(КалендарныйДень),1,0)))","v":"День 341"},{"$f":"IF(WEEKDAY(КалендарныйДень)=ЗначениеНачалаНедели,CONCATENATE(\"Неделя \",WEEKNUM(КалендарныйДень),\"/День \",КалендарныйДень-DATE(YEAR(КалендарныйДень),1,0)),CONCATENATE(\"День \",КалендарныйДень-DATE(YEAR(КалендарныйДень),1,0)))","v":"День 342"}]
[]
[null,null,{"$f":"ДниИНедели+DATE(ГодКалендаря,12,1)-WEEKDAY(DATE(ГодКалендаря,12,1),(НачалоНедели=\"ПН\")+1)+15","v":"2018-12-09"},"2018-12-10","2018-12-11","2018-12-12","2018-12-13","2018-12-14","2018-12-15"]
[null,null,{"$f":"IF(WEEKDAY(КалендарныйДень)=ЗначениеНачалаНедели,CONCATENATE(\"Неделя \",WEEKNUM(КалендарныйДень),\"/День \",КалендарныйДень-DATE(YEAR(КалендарныйДень),1,0)),CONCATENATE(\"День \",КалендарныйДень-DATE(YEAR(КалендарныйДень),1,0)))","v":"Неделя 50/День 343"},{"$f":"IF(WEEKDAY(КалендарныйДень)=ЗначениеНачалаНедели,CONCATENATE(\"Неделя \",WEEKNUM(КалендарныйДень),\"/День \",КалендарныйДень-DATE(YEAR(КалендарныйДень),1,0)),CONCATENATE(\"День \",КалендарныйДень-DATE(YEAR(КалендарныйДень),1,0)))","v":"День 344"},{"$f":"IF(WEEKDAY(КалендарныйДень)=ЗначениеНачалаНедели,CONCATENATE(\"Неделя \",WEEKNUM(КалендарныйДень),\"/День \",КалендарныйДень-DATE(YEAR(КалендарныйДень),1,0)),CONCATENATE(\"День \",КалендарныйДень-DATE(YEAR(КалендарныйДень),1,0)))","v":"День 345"},{"$f":"IF(WEEKDAY(КалендарныйДень)=ЗначениеНачалаНедели,CONCATENATE(\"Неделя \",WEEKNUM(КалендарныйДень),\"/День \",КалендарныйДень-DATE(YEAR(КалендарныйДень),1,0)),CONCATENATE(\"День \",КалендарныйДень-DATE(YEAR(КалендарныйДень),1,0)))","v":"День 346"},{"$f":"IF(WEEKDAY(КалендарныйДень)=ЗначениеНачалаНедели,CONCATENATE(\"Неделя \",WEEKNUM(КалендарныйДень),\"/День \",КалендарныйДень-DATE(YEAR(КалендарныйДень),1,0)),CONCATENATE(\"День \",КалендарныйДень-DATE(YEAR(КалендарныйДень),1,0)))","v":"День 347"},{"$f":"IF(WEEKDAY(КалендарныйДень)=ЗначениеНачалаНедели,CONCATENATE(\"Неделя \",WEEKNUM(КалендарныйДень),\"/День \",КалендарныйДень-DATE(YEAR(КалендарныйДень),1,0)),CONCATENATE(\"День \",КалендарныйДень-DATE(YEAR(КалендарныйДень),1,0)))","v":"День 348"},{"$f":"IF(WEEKDAY(КалендарныйДень)=ЗначениеНачалаНедели,CONCATENATE(\"Неделя \",WEEKNUM(КалендарныйДень),\"/День \",КалендарныйДень-DATE(YEAR(КалендарныйДень),1,0)),CONCATENATE(\"День \",КалендарныйДень-DATE(YEAR(КалендарныйДень),1,0)))","v":"День 349"}]
[]
[null,null,{"$f":"ДниИНедели+DATE(ГодКалендаря,12,1)-WEEKDAY(DATE(ГодКалендаря,12,1),(НачалоНедели=\"ПН\")+1)+22","v":"2018-12-16"},"2018-12-17","2018-12-18","2018-12-19","2018-12-20","2018-12-21","2018-12-22"]
[null,null,{"$f":"IF(WEEKDAY(КалендарныйДень)=ЗначениеНачалаНедели,CONCATENATE(\"Неделя \",WEEKNUM(КалендарныйДень),\"/День \",КалендарныйДень-DATE(YEAR(КалендарныйДень),1,0)),CONCATENATE(\"День \",КалендарныйДень-DATE(YEAR(КалендарныйДень),1,0)))","v":"Неделя 51/День 350"},{"$f":"IF(WEEKDAY(КалендарныйДень)=ЗначениеНачалаНедели,CONCATENATE(\"Неделя \",WEEKNUM(КалендарныйДень),\"/День \",КалендарныйДень-DATE(YEAR(КалендарныйДень),1,0)),CONCATENATE(\"День \",КалендарныйДень-DATE(YEAR(КалендарныйДень),1,0)))","v":"День 351"},{"$f":"IF(WEEKDAY(КалендарныйДень)=ЗначениеНачалаНедели,CONCATENATE(\"Неделя \",WEEKNUM(КалендарныйДень),\"/День \",КалендарныйДень-DATE(YEAR(КалендарныйДень),1,0)),CONCATENATE(\"День \",КалендарныйДень-DATE(YEAR(КалендарныйДень),1,0)))","v":"День 352"},{"$f":"IF(WEEKDAY(КалендарныйДень)=ЗначениеНачалаНедели,CONCATENATE(\"Неделя \",WEEKNUM(КалендарныйДень),\"/День \",КалендарныйДень-DATE(YEAR(КалендарныйДень),1,0)),CONCATENATE(\"День \",КалендарныйДень-DATE(YEAR(КалендарныйДень),1,0)))","v":"День 353"},{"$f":"IF(WEEKDAY(КалендарныйДень)=ЗначениеНачалаНедели,CONCATENATE(\"Неделя \",WEEKNUM(КалендарныйДень),\"/День \",КалендарныйДень-DATE(YEAR(КалендарныйДень),1,0)),CONCATENATE(\"День \",КалендарныйДень-DATE(YEAR(КалендарныйДень),1,0)))","v":"День 354"},{"$f":"IF(WEEKDAY(КалендарныйДень)=ЗначениеНачалаНедели,CONCATENATE(\"Неделя \",WEEKNUM(КалендарныйДень),\"/День \",КалендарныйДень-DATE(YEAR(КалендарныйДень),1,0)),CONCATENATE(\"День \",КалендарныйДень-DATE(YEAR(КалендарныйДень),1,0)))","v":"День 355"},{"$f":"IF(WEEKDAY(КалендарныйДень)=ЗначениеНачалаНедели,CONCATENATE(\"Неделя \",WEEKNUM(КалендарныйДень),\"/День \",КалендарныйДень-DATE(YEAR(КалендарныйДень),1,0)),CONCATENATE(\"День \",КалендарныйДень-DATE(YEAR(КалендарныйДень),1,0)))","v":"День 356"}]
[]
[null,null,{"$f":"ДниИНедели+DATE(ГодКалендаря,12,1)-WEEKDAY(DATE(ГодКалендаря,12,1),(НачалоНедели=\"ПН\")+1)+29","v":"2018-12-23"},"2018-12-24","2018-12-25","2018-12-26","2018-12-27","2018-12-28","2018-12-29"]
[null,null,{"$f":"IF(WEEKDAY(КалендарныйДень)=ЗначениеНачалаНедели,CONCATENATE(\"Неделя \",WEEKNUM(КалендарныйДень),\"/День \",КалендарныйДень-DATE(YEAR(КалендарныйДень),1,0)),CONCATENATE(\"День \",КалендарныйДень-DATE(YEAR(КалендарныйДень),1,0)))","v":"Неделя 52/День 357"},{"$f":"IF(WEEKDAY(КалендарныйДень)=ЗначениеНачалаНедели,CONCATENATE(\"Неделя \",WEEKNUM(КалендарныйДень),\"/День \",КалендарныйДень-DATE(YEAR(КалендарныйДень),1,0)),CONCATENATE(\"День \",КалендарныйДень-DATE(YEAR(КалендарныйДень),1,0)))","v":"День 358"},{"$f":"IF(WEEKDAY(КалендарныйДень)=ЗначениеНачалаНедели,CONCATENATE(\"Неделя \",WEEKNUM(КалендарныйДень),\"/День \",КалендарныйДень-DATE(YEAR(КалендарныйДень),1,0)),CONCATENATE(\"День \",КалендарныйДень-DATE(YEAR(КалендарныйДень),1,0)))","v":"День 359"},{"$f":"IF(WEEKDAY(КалендарныйДень)=ЗначениеНачалаНедели,CONCATENATE(\"Неделя \",WEEKNUM(КалендарныйДень),\"/День \",КалендарныйДень-DATE(YEAR(КалендарныйДень),1,0)),CONCATENATE(\"День \",КалендарныйДень-DATE(YEAR(КалендарныйДень),1,0)))","v":"День 360"},{"$f":"IF(WEEKDAY(КалендарныйДень)=ЗначениеНачалаНедели,CONCATENATE(\"Неделя \",WEEKNUM(КалендарныйДень),\"/День \",КалендарныйДень-DATE(YEAR(КалендарныйДень),1,0)),CONCATENATE(\"День \",КалендарныйДень-DATE(YEAR(КалендарныйДень),1,0)))","v":"День 361"},{"$f":"IF(WEEKDAY(КалендарныйДень)=ЗначениеНачалаНедели,CONCATENATE(\"Неделя \",WEEKNUM(КалендарныйДень),\"/День \",КалендарныйДень-DATE(YEAR(КалендарныйДень),1,0)),CONCATENATE(\"День \",КалендарныйДень-DATE(YEAR(КалендарныйДень),1,0)))","v":"День 362"},{"$f":"IF(WEEKDAY(КалендарныйДень)=ЗначениеНачалаНедели,CONCATENATE(\"Неделя \",WEEKNUM(КалендарныйДень),\"/День \",КалендарныйДень-DATE(YEAR(КалендарныйДень),1,0)),CONCATENATE(\"День \",КалендарныйДень-DATE(YEAR(КалендарныйДень),1,0)))","v":"День 363"}]
[{"$nulls":4},"ЗАМЕТКИ"]
[]
[null,null,{"$f":"ДниИНедели+DATE(ГодКалендаря,12,1)-WEEKDAY(DATE(ГодКалендаря,12,1),(НачалоНедели=\"ПН\")+1)+36","v":"2018-12-30"},"2018-12-31"]
[null,null,{"$f":"IF(WEEKDAY(КалендарныйДень)=ЗначениеНачалаНедели,CONCATENATE(\"Неделя \",WEEKNUM(КалендарныйДень),\"/День \",КалендарныйДень-DATE(YEAR(КалендарныйДень),1,0)),CONCATENATE(\"День \",КалендарныйДень-DATE(YEAR(КалендарныйДень),1,0)))","v":"Неделя 53/День 364"},{"$f":"IF(WEEKDAY(КалендарныйДень)=ЗначениеНачалаНедели,CONCATENATE(\"Неделя \",WEEKNUM(КалендарныйДень),\"/День \",КалендарныйДень-DATE(YEAR(КалендарныйДень),1,0)),CONCATENATE(\"День \",КалендарныйДень-DATE(YEAR(КалендарныйДень),1,0)))","v":"День 365"}]